{"text_format":"1","workbook":"xlsx","n_sheets":18,"sheets":["Certification","Operating Budget","Shelter 1 Metrics","Shelter 2 Metrics","Shelter 3 Metrics","Shelter 4 Metrics","Shelter 5 Metrics","Shelter 6 Metrics","Shelter 7 Metrics","Shelter 8 Metrics","Shelter 9 Metrics","Shelter 10 Metrics","Shelter 11 Metrics","Shelter 12 Metrics","Rep Worksheet","Contract Data","Shelter Data","Lists"],"not_rendered":{"charts":0,"images":1,"macros":1,"external_links":3,"defined_names":331,"comments":0,"pivot_tables":0},"unopened":[],"bounds":{"document_bytes":16777216,"sheet_cells":100000,"rows_first":2000,"rows_last":500,"rows_between":2000,"halvings":0,"cell_chars":16384,"cell_head_chars":4096},"cells_cut":0,"cells_raw":0,"read":"whole","date_system":"1900"}

{"sheet":"Certification","index":0,"n_rows":28,"n_cols":8,"rows_kept":28,"cut":false,"hidden":false,"merged":[[22,0,22,9],[23,0,23,9],[1,0,1,3],[2,0,2,1],[4,0,4,1],[8,0,10,9],[14,1,14,4],[12,0,12,9],[16,1,16,4],[13,1,13,4],[15,1,15,4],[13,7,13,9],[13,5,13,6],[15,5,15,6],[15,7,15,9],[16,7,16,9],[24,0,24,1],[24,2,24,3],[27,6,27,9],[28,6,28,9],[27,0,27,5],[28,0,28,5],[25,0,25,5],[26,0,26,5],[25,6,25,9],[26,6,26,9],[24,5,24,9],[17,1,17,4],[18,1,18,4],[21,7,21,9],[21,1,21,4],[21,5,21,6],[20,1,20,4],[18,7,18,9],[19,5,19,6],[19,7,19,9],[19,1,19,4],[14,5,14,6],[14,7,14,9],[20,5,20,6],[20,7,20,9],[18,5,18,6],[17,5,17,6],[17,7,17,9],[16,5,16,6]]}
["first sheet: cover and certification"]
["DEPARTMENT OF HOUSING AND COMMUNITY DEVELOPMENT"]
["DIVISION OF STATE FINANCIAL ASSISTANCE"]
["STATE GRANT MANAGEMENT"]
["2020 West El Camino, 4th Floor"]
["Sacramento, CA  95833"]
["PAS@HCD.CA.GOV "]
[]
["PET ASSISTANCE AND SUPPORT (PAS) PROGRAM\nBI-ANNUAL REPORTING\nCERTIFICATION"]
[]
[]
["Last Updated: 12/13/2023"]
["Instructions: All fields in which information is requested must be completed by the grantee within the tabs of the reporting workbook. A new tab will appear for outcomes of each individual shelter supported by this program. You must indicate the number of unique shelters receiving services with PAS funds on the Operating Budget tab.  Reporting workbooks which contain blank information will be considered incomplete and will be returned to the grantee for completion.  Any questions pertaining to the grantees reporting requirements should be directed to the Grant Management Representative assigned to their project. Or, submit your email inquiry at PAS@HCD.CA.GOV if you do not have your Grant Management Representative information."]
["HCD Contract Number",null,null,null,null,"PAS Round 2 Award"]
["Contractor Name",null,null,null,null,"PAS Round 3 Award"]
["Contractor Complete Address",null,null,null,null,"Total PAS Program Award",null,{"$f":"SUM(H14:J15)","v":0}]
["Preparer Name",null,null,null,null,"Total PAS Interest Accumulated to date"]
["Preparer Phone Number",null,null,null,null,"Total PAS Program Funds",null,{"$f":"H16+H17","v":0}]
["Preparer Email Address",null,null,null,null,"Total PAS Funds Expended to Date (Includes interest, as applicable)"]
["Number of Shelters receiving PAS Funds","Select One",null,null,null,"PAS Program Funds Available to Date",null,{"$f":"H18-H19","v":0}]
["Reporting Period","Select One",null,null,null,"Total PAS Award Disbursed by HCD to Date"]
["Total Number of Participants Served by PAS funds since Project Inception",null,null,null,null,"Total Number of Pets Served by PAS funds since Project Inception"]
["CERTIFICATION"]
["By signing this request, I certify to the best of my knowledge and belief that the request is true, complete, and accurate, and the expenditures, disbursements and cash receipts will be  for the purposes and objectives set forth in the terms and conditions of the State award. I am aware that any false, fictitious, or fraudulent information, or the omission of any material fact, may subject me to criminal, civil or administrative penalties for fraud, false statements, false claims or otherwise. (U.S. Code Title 18, Section 1001 and Title 31, Sections 3729-3730 and 3801-3812)"]
["Signature Method: ",null,"Select One",null,null,{"$f":"_xlfn.XLOOKUP(C25,Lists!B19:B21,Lists!C19:C21,\"\",0)","v":0}]
["Name of Authorized Person (per final resolution)",null,null,null,null,null,"Title of Authorized Person"]
[]
["Signature of Authorized Person",null,null,null,null,null,"Date"]

{"sheet":"Operating Budget","index":1,"n_rows":35,"n_cols":28,"rows_kept":35,"cut":false,"hidden":false,"merged":[[8,5,8,6],[9,7,9,8],[26,11,26,12],[24,9,24,10],[25,9,25,10],[27,11,27,12],[30,7,30,8],[30,9,30,10],[30,11,30,12],[20,11,20,12],[19,9,19,10],[19,11,19,12],[21,11,21,12],[24,11,24,12],[25,11,25,12],[26,7,26,8],[20,9,20,10],[21,9,21,10],[22,9,22,10],[23,9,23,10],[25,7,25,8],[24,7,24,8],[23,11,23,12],[26,9,26,10],[9,1,9,4],[15,1,15,4],[15,5,15,6],[13,1,13,4],[14,1,14,4],[10,1,10,4],[10,5,10,6],[10,7,10,8],[10,9,10,10],[9,5,9,6],[14,9,14,10],[15,9,15,10],[11,5,11,6],[15,7,15,8],[13,7,13,8],[14,7,14,8],[13,9,13,10],[11,1,11,4],[13,5,13,6],[7,5,7,6],[16,5,16,6],[31,13,31,14],[32,13,33,14],[13,13,13,14],[14,13,14,14],[31,7,31,8],[32,7,33,8],[31,9,31,10],[32,9,33,10],[17,5,17,6],[31,5,31,6],[32,5,33,6],[9,11,9,12],[9,13,9,14],[8,7,8,8],[8,9,8,10],[8,11,8,12],[8,13,8,14],[11,13,11,14],[9,9,9,10],[15,13,15,14],[16,13,16,14],[10,11,10,12],[16,1,16,4],[14,5,14,6],[26,1,26,4],[20,5,20,6],[21,5,21,6],[22,5,22,6],[16,7,16,8],[16,9,16,10],[17,1,17,4],[23,5,23,6],[21,1,21,4],[19,7,19,8],[20,7,20,8],[21,7,21,8],[22,7,22,8],[31,1,33,4],[19,5,19,6],[31,11,31,12],[32,11,33,12],[30,5,30,6],[22,11,22,12],[23,7,23,8],[30,1,30,4],[19,1,19,4],[24,5,24,6],[25,5,25,6],[26,5,26,6],[28,5,28,6],[29,1,29,4],[29,5,29,6],[22,1,22,4],[23,1,23,4],[24,1,24,4],[25,1,25,4],[28,1,28,4],[20,1,20,4],[27,9,27,10],[10,13,10,14],[13,11,13,12],[14,11,14,12],[16,11,16,12],[11,7,11,8],[11,9,11,10],[11,11,11,12],[15,11,15,12],[30,13,30,14],[21,13,21,14],[22,13,22,14],[23,13,23,14],[24,13,24,14],[25,13,25,14],[26,13,26,14],[19,13,19,14],[20,13,20,14],[23,15,23,16],[24,15,24,16],[25,15,25,16],[26,15,26,16],[8,15,8,16],[9,15,9,16],[10,15,10,16],[11,15,11,16],[13,15,13,16],[14,15,14,16],[15,15,15,16],[16,15,16,16],[31,15,31,16],[32,15,33,16],[8,17,8,18],[9,17,9,18],[10,17,10,18],[11,17,11,18],[13,17,13,18],[14,17,14,18],[15,17,15,18],[16,17,16,18],[30,17,30,18],[19,17,19,18],[20,17,20,18],[21,17,21,18],[22,17,22,18],[23,17,23,18],[24,17,24,18],[25,17,25,18],[26,17,26,18],[31,17,31,18],[32,17,33,18],[30,15,30,16],[19,15,19,16],[20,15,20,16],[8,19,8,20],[8,21,8,22],[9,19,9,20],[9,21,9,22],[10,19,10,20],[10,21,10,22],[11,19,11,20],[11,21,11,22],[13,19,13,20],[13,21,13,22],[30,19,30,20],[30,21,30,22],[19,19,19,20],[19,21,19,22],[20,19,20,20],[20,21,20,22],[21,19,21,20],[21,21,21,22],[23,19,23,20],[23,21,23,22],[24,19,24,20],[24,21,24,22],[25,19,25,20],[25,21,25,22],[26,19,26,20],[26,21,26,22],[31,19,31,20],[31,21,31,22],[32,19,33,20],[32,21,33,22],[8,23,8,24],[8,25,8,26],[8,27,8,28],[11,23,11,24],[11,25,11,26],[11,27,11,28],[14,23,14,24],[14,25,14,26],[14,27,14,28],[16,23,16,24],[16,25,16,26],[16,27,16,28],[15,25,15,26],[15,27,15,28],[13,23,13,24],[13,25,13,26],[13,27,13,28],[9,23,9,24],[9,25,9,26],[9,27,9,28],[10,23,10,24],[10,25,10,26],[10,27,10,28],[20,25,20,26],[20,27,20,28],[21,23,21,24],[21,25,21,26],[21,27,21,28],[22,23,22,24],[22,25,22,26],[22,27,22,28],[19,23,19,24],[19,25,19,26],[19,27,19,28],[12,1,12,28],[22,21,22,22],[14,19,14,20],[14,21,14,22],[15,19,15,20],[15,21,15,22],[16,19,16,20],[16,21,16,22],[21,15,21,16],[22,15,22,16],[26,25,26,26],[26,27,26,28],[23,23,23,24],[23,25,23,26],[23,27,23,28],[24,23,24,24],[24,25,24,26],[24,27,24,28],[25,23,25,24],[25,25,25,26],[25,27,25,28],[27,25,27,26],[27,27,27,28],[31,27,31,28],[30,23,30,24],[30,25,30,26],[30,27,30,28],[32,23,33,24],[32,25,33,26],[32,27,33,28],[31,23,31,24],[31,25,31,26],[5,1,5,28],[4,1,4,28],[1,1,2,28],[0,6,0,28],[18,1,18,28],[17,14,17,28],[6,1,6,4],[6,5,6,6],[27,1,27,4],[27,5,27,6],[27,7,27,8],[3,1,3,2],[3,5,3,6],[7,1,7,4],[27,13,27,14],[27,15,27,16],[27,17,27,18],[27,19,27,20],[27,21,27,22],[27,23,27,24],[26,23,26,24],[20,23,20,24],[15,23,15,24],[22,19,22,20]]}
[null,"beginning of second sheet: operating budget"]
[null,"PET ASSISTANCE AND SUPPORT (PAS) PROGRAM\nOPERATING BUDGET"]
[]
[null,"HCD Contract Number:",null,{"$f":"Certification!B14","v":0},"Contractor Name:",{"$f":"Certification!B15","v":0}]
[null,"Please include revenue and expenses as they relate to each Shelter in general and PAS-specific funding and expenses for the current reporting period. Input 0 in spaces where not applicable. Include funds spent/to be reimbursed by PAS in row 17."]
[null,"Shelter Operation"]
[null,"Have all disbursed grant funds been deposited in an interest-bearing checking or savings account insured by the federal or state government and all interest earned from the deposit of grant funds used for eligible Program activities and accounted for? (pursuant to Exhibit B Section 5(B) of the Standard Agreement) \nIf No, please explain in additional notes below.",null,null,null,"Select One"]
[null,"PAS Funds Interest accumulated this reporting period",null,null,null,0]
[null,null,null,null,null,"Shelter 1",null,"Shelter 2",null,"Shelter 3",null,"Shelter 4",null,"Shelter 5",null,"Shelter 6",null,"Shelter 7",null,"Shelter 8",null,"Shelter 9",null,"Shelter 10",null,"Shelter 11",null,"Shelter 12"]
[null,"Please enter the name of this Shelter:"]
[null,"Is this Shelter Currently in Operation?",null,null,null,"Select One",null,"Select One",null,"Select One",null,"Select One",null,"Select One",null,"Select One",null,"Select One",null,"Select One",null,"Select One",null,"Select One",null,"Select One",null,"Select One"]
[null,"Please input the date that the shelter began operation. If it is not currently in operation, please input the anticipated date for shelter operation beginning or provide additional notes below."]
[null,{"$f":"IF(Certification!B21=\"Select One\",\"Actual Revenues this Reporting Period\",_xlfn.CONCAT(\"Actual Revenues for \",Certification!B21&\" Reporting Period\"))","v":"Actual Revenues this Reporting Period"}]
[null,"PAS Revenue Sources",null,null,null,{"$f":"IF(F10=\"\",\"Shelter 1 PAS Revenue\",F10&\" PAS Revenue\")","v":"Shelter 1 PAS Revenue"},null,{"$f":"IF(H10=\"\",\"Shelter 2 PAS Revenue\",H10&\" PAS Revenue\")","v":"Shelter 2 PAS Revenue"},null,{"$f":"IF(J10=\"\",\"Shelter 3 PAS Revenue\",J10&\" PAS Revenue\")","v":"Shelter 3 PAS Revenue"},null,{"$f":"IF(L10=\"\",\"Shelter 4 PAS Revenue\",L10&\" PAS Revenue\")","v":"Shelter 4 PAS Revenue"},null,{"$f":"IF(N10=\"\",\"Shelter 5 PAS Revenue\",N10&\" PAS Revenue\")","v":"Shelter 5 PAS Revenue"},null,{"$f":"IF(P10=\"\",\"Shelter 6 PAS Revenue\",P10&\" PAS Revenue\")","v":"Shelter 6 PAS Revenue"},null,{"$f":"IF(R10=\"\",\"Shelter 7 PAS Revenue\",R10&\" PAS Revenue\")","v":"Shelter 7 PAS Revenue"},null,{"$f":"IF(T10=\"\",\"Shelter 8 PAS Revenue\",T10&\" PAS Revenue\")","v":"Shelter 8 PAS Revenue"},null,{"$f":"IF(V10=\"\",\"Shelter 9 PAS Revenue\",V10&\" PAS Revenue\")","v":"Shelter 9 PAS Revenue"},null,{"$f":"IF(X10=\"\",\"Shelter 10 PAS Revenue\",X10&\" PAS Revenue\")","v":"Shelter 10 PAS Revenue"},null,{"$f":"IF(Z10=\"\",\"Shelter 11 PAS Revenue\",Z10&\" PAS Revenue\")","v":"Shelter 11 PAS Revenue"},null,{"$f":"IF(AB10=\"\",\"Shelter 12 PAS Revenue\",AB10&\" PAS Revenue\")","v":"Shelter 12 PAS Revenue"}]
[null,"PAS Funding expended on Shelters this reporting period including interest expended this reporting period",null,null,null,0,null,0,null,0,null,0,null,0,null,0,null,0,null,0,null,0,null,0,null,0,null,0]
[null,"PAS Funds used to Reimburse Shelter for PAS-Eligible Expenses \nOnly eligible for the first reporting period following the first disbursement, if other sources were used to cover costs of PAS-eligible activities prior to disbursement of PAS funds.",null,null,null,0,null,0,null,0,null,0,null,0,null,0,null,0,null,0,null,0,null,0,null,0,null,0]
[null,"Total PAS Revenue",null,null,null,{"$f":"SUM(F15:F15)","v":0},null,{"$f":"SUM(H15:H15)","v":0},null,{"$f":"SUM(J15:J15)","v":0},null,{"$f":"SUM(L15:L15)","v":0},null,{"$f":"SUM(N15:N15)","v":0},null,{"$f":"SUM(P15:P15)","v":0},null,{"$f":"SUM(R15:R15)","v":0},null,{"$f":"SUM(T15:T15)","v":0},null,{"$f":"SUM(V15:V15)","v":0},null,{"$f":"SUM(X15:X15)","v":0},null,{"$f":"SUM(Z15:Z15)","v":0},null,{"$f":"SUM(AB15:AB15)","v":0}]
[null,"Cumulative PAS Revenue",null,null,null,{"$f":"SUM(F17:AC17)","v":0}]
[null,{"$f":"IF(Certification!B21=\"Select One\",\"Actual Expenses this Reporting Period\",_xlfn.CONCAT(\"Actual Expenses for \",Certification!B21&\" reporting period\"))","v":"Actual Expenses this Reporting Period"}]
[null,"PAS Eligible Expenses",null,null,null,{"$f":"IF(F10=\"\",\"PAS Expenditures for Shelter 1\",\"PAS Expenditures for  \"&F10)","v":"PAS Expenditures for Shelter 1"},null,{"$f":"IF(H10=\"\",\"PAS Expenditures for Shelter 2\",\"PAS Expenditures for  \"&H10)","v":"PAS Expenditures for Shelter 2"},null,{"$f":"IF(J10=\"\",\"PAS Expenditures for Shelter 3\",\"PAS Expenditures for  \"&J10)","v":"PAS Expenditures for Shelter 3"},null,{"$f":"IF(L10=\"\",\"PAS Expenditures for Shelter 4\",\"PAS Expenditures for  \"&L10)","v":"PAS Expenditures for Shelter 4"},null,{"$f":"IF(N10=\"\",\"PAS Expenditures for Shelter 5\",\"PAS Expenditures for  \"&N10)","v":"PAS Expenditures for Shelter 5"},null,{"$f":"IF(P10=\"\",\"PAS Expenditures for Shelter 6\",\"PAS Expenditures for  \"&P10)","v":"PAS Expenditures for Shelter 6"},null,{"$f":"IF(R10=\"\",\"PAS Expenditures for Shelter 7\",\"PAS Expenditures for  \"&R10)","v":"PAS Expenditures for Shelter 7"},null,{"$f":"IF(T10=\"\",\"PAS Expenditures for Shelter 8\",\"PAS Expenditures for  \"&T10)","v":"PAS Expenditures for Shelter 8"},null,{"$f":"IF(V10=\"\",\"PAS Expenditures for Shelter 9\",\"PAS Expenditures for  \"&V10)","v":"PAS Expenditures for Shelter 9"},null,{"$f":"IF(X10=\"\",\"PAS Expenditures for Shelter 10\",\"PAS Expenditures for  \"&X10)","v":"PAS Expenditures for Shelter 10"},null,{"$f":"IF(Z10=\"\",\"PAS Expenditures for Shelter 11\",\"PAS Expenditures for  \"&Z10)","v":"PAS Expenditures for Shelter 11"},null,{"$f":"IF(AB10=\"\",\"PAS Expenditures for Shelter 12\",\"PAS Expenditures for  \"&AB10)","v":"PAS Expenditures for Shelter 12"}]
[null,"Crates and Kennels (PAS)",null,null,null,0,null,0,null,0,null,0,null,0,null,0,null,0,null,0,null,0,null,0,null,0,null,0]
[null,"Pet Food and Supply (PAS)",null,null,null,0,null,0,null,0,null,0,null,0,null,0,null,0,null,0,null,0,null,0,null,0,null,0]
[null,"Veterinarian Services (PAS)",null,null,null,0,null,0,null,0,null,0,null,0,null,0,null,0,null,0,null,0,null,0,null,0,null,0]
[null,"Staff (for assisting Pets) (PAS)",null,null,null,0,null,0,null,0,null,0,null,0,null,0,null,0,null,0,null,0,null,0,null,0,null,0]
[null,"Independent Audit (PAS)",null,null,null,0,null,0,null,0,null,0,null,0,null,0,null,0,null,0,null,0,null,0,null,0,null,0]
[null,"Liability Insurance (PAS)",null,null,null,0,null,0,null,0,null,0,null,0,null,0,null,0,null,0,null,0,null,0,null,0,null,0]
[null,"Total PAS Expenses",null,null,null,{"$f":"SUM(F21:G26)","v":0},null,{"$f":"SUM(H21:I26)","v":0},null,{"$f":"SUM(J21:K26)","v":0},null,{"$f":"SUM(L21:M26)","v":0},null,{"$f":"SUM(N21:O26)","v":0},null,{"$f":"SUM(P21:Q26)","v":0},null,{"$f":"SUM(R21:S26)","v":0},null,{"$f":"SUM(T21:U26)","v":0},null,{"$f":"SUM(V21:W26)","v":0},null,{"$f":"SUM(X21:Y26)","v":0},null,{"$f":"SUM(Z21:AA26)","v":0},null,{"$f":"SUM(AB21:AC26)","v":0}]
[null,"PAS Net Operating Income",null,null,null,{"$f":"F17-F27","v":0},null,{"$f":"H17-H27","v":0},null,{"$f":"J17-J27","v":0},null,{"$f":"L17-L27","v":0},null,{"$f":"N17-N27","v":0},null,{"$f":"P17-P27","v":0},null,{"$f":"R17-R27","v":0},null,{"$f":"T17-T27","v":0},null,{"$f":"V17-V27","v":0},null,{"$f":"X17-X27","v":0},null,{"$f":"Z17-Z27","v":0},null,{"$f":"AB17-AB27","v":0}]
[null,"Cumulative PAS Expenditure:",null,null,null,{"$f":"SUM(F27:AB27)","v":0}]
[null,"Cumulative PAS NOI:",null,null,null,{"$f":"F18-F29","v":0}]
[null,"We Attest that the Shelter Is: ",null,null,null,"Select One",null,"Select One",null,"Select One",null,"Select One",null,"Select One",null,"Select One",null,"Select One",null,"Select One",null,"Select One",null,"Select One",null,"Select One",null,"Select One"]
[null,"Please enter any additional notes on each shelter here:",null,null,null,{"$f":"IF(F10=\"\",\"Additional Notes on Shelter 1\", \"Additional Notes on \"&F10)","v":"Additional Notes on Shelter 1"},null,{"$f":"IF(H10=\"\",\"Additional Notes on Shelter 2\", \"Additional Notes on \"&H10)","v":"Additional Notes on Shelter 2"},null,{"$f":"IF(J10=\"\",\"Additional Notes on Shelter 3\", \"Additional Notes on \"&J10)","v":"Additional Notes on Shelter 3"},null,{"$f":"IF(L10=\"\",\"Additional Notes on Shelter 4\", \"Additional Notes on \"&L10)","v":"Additional Notes on Shelter 4"},null,{"$f":"IF(N10=\"\",\"Additional Notes on Shelter 5\", \"Additional Notes on \"&N10)","v":"Additional Notes on Shelter 5"},null,{"$f":"IF(P10=\"\",\"Additional Notes on Shelter 6\", \"Additional Notes on \"&P10)","v":"Additional Notes on Shelter 6"},null,{"$f":"IF(R10=\"\",\"Additional Notes on Shelter 7\", \"Additional Notes on \"&R10)","v":"Additional Notes on Shelter 7"},null,{"$f":"IF(T10=\"\",\"Additional Notes on Shelter 8\", \"Additional Notes on \"&T10)","v":"Additional Notes on Shelter 8"},null,{"$f":"IF(V10=\"\",\"Additional Notes on Shelter 9\", \"Additional Notes on \"&V10)","v":"Additional Notes on Shelter 9"},null,{"$f":"IF(X10=\"\",\"Additional Notes on Shelter 10\", \"Additional Notes on \"&X10)","v":"Additional Notes on Shelter 10"},null,{"$f":"IF(Z10=\"\",\"Additional Notes on Shelter 11\", \"Additional Notes on \"&Z10)","v":"Additional Notes on Shelter 11"},null,{"$f":"IF(AB10=\"\",\"Additional Notes on Shelter 12\", \"Additional Notes on \"&AB10)","v":"Additional Notes on Shelter 12"}]
[]
[]
[null,"Note: if you need to customize this form, please contact your PAS HCD Representative. "]

{"sheet":"Shelter 1 Metrics","index":2,"n_rows":51,"n_cols":12,"rows_kept":51,"cut":false,"hidden":false,"merged":[[49,6,49,11],[20,0,20,11],[49,0,49,2],[46,3,46,4],[47,3,47,4],[48,3,48,4],[49,3,49,4],[46,0,46,2],[45,0,45,2],[43,3,43,4],[44,0,44,2],[33,0,33,11],[34,0,34,11],[24,0,24,11],[39,6,39,11],[43,6,43,11],[21,0,21,11],[22,0,22,11],[13,0,13,11],[14,4,14,11],[15,4,15,11],[16,0,16,11],[17,4,17,9],[18,4,18,9],[19,4,19,9],[18,10,18,11],[15,0,15,3],[18,0,18,3],[17,0,17,3],[19,0,19,3],[17,10,17,11],[4,0,4,11],[1,0,2,11],[0,7,0,11],[3,0,3,1],[14,0,14,3],[3,4,3,5],[3,6,3,8],[5,0,5,11],[6,0,6,11],[7,9,7,10],[3,2,3,3],[12,1,12,11],[7,6,7,7],[8,0,8,11],[47,0,47,2],[48,0,48,2],[35,0,35,11],[36,0,36,11],[37,0,37,11],[40,6,40,11],[41,6,41,11],[42,6,42,11],[42,0,42,2],[48,6,48,11],[44,6,44,11],[45,6,45,11],[46,6,46,11],[47,6,47,11],[32,0,32,11],[43,0,43,2],[42,3,42,4],[39,0,39,2],[39,3,39,4],[40,0,40,2],[40,3,40,4],[41,0,41,2],[41,3,41,4],[27,6,27,8],[44,3,44,4],[50,0,50,11],[51,0,51,11],[19,10,19,11],[23,6,23,8],[23,0,23,5],[27,0,27,5],[25,0,25,11],[26,0,26,11],[45,3,45,4],[38,0,38,11],[28,0,28,11],[29,0,29,11],[30,0,30,11],[31,0,31,11]]}
["beginning of Shelter Metrics page 1"]
["PET ASSISTANCE AND SUPPORT (PAS) PROGRAM\nPERFORMANCE MEASURES "]
[]
["HCD Contract Number:",null,{"$f":"Certification!B14","v":0},null,"Shelter Name:",null,{"$f":"'Operating Budget'!F10","v":0}]
["Instructions: Please fill in outcomes for this reporting period for the shelter named in cell G4. Total numbers should be reported as whole numbers. Please provide as thorough a response as appropriate for narrative questions. Do Not Include Outcome information from prior reporting periods or anticipated outcomes for future periods. "]
["NOFA E.5.a. Measurable Outcomes"]
["Note: Totals of General Shelter Specific Outcomes should include all participants assisted within each category by the shelter during the reporting period, including those assisted by the PAS program."]
["Total Number of common household pets assisted by the PAS program",null,"Total number of PAS-assisted Pets receiving Behavioral Support Training from Veterinary Services",null,"Total number of PAS-assisted Pets receiving Spay/Neuter Veterinary Services",null,"Total number of PAS-assisted Pets receiving Vaccination Veterinary Services",null,null,"Total number of PAS-assisted Pets that are Emotional Support or Service Animals"]
[]
[null,"Number of Participants Assisted","Number of Shelter Beds Available","Participant's Average Length of Stay (in days):","Number of Exits to Permanent Housing:","Number of Exits to homelessness:","Number of Minor Children (ages 0-17) assisted","Number of Transition-Aged Youth (ages 18-24) assisted","Number of Seniors (ages 65+) assisted ","Number of Veterans assisted ","Number of persons with a reported disability assisted","Number of persons identifying as LGBTQIA+ assisted "]
["PAS Program Specific Outcomes:"]
["General Shelter Specific Outcomes:"]
["Brief Description of Performance Outcomes this Reporting Period:"]
["NOFA E.5.c and d. Increased Residential Stability and skills/income"]
["Please describe how both PAS participants and participants assisted by the shelter in general showed increased residential stability during this reporting period. This may include exits to permanent housing, rental application or deposit assistance, housing navigation services or other forms of assistance directly related to helping participants gain stable housing."]
["Please describe how both PAS participants and participants assisted by the shelter in general showed increased skills and/or income during this reporting period. This may include details about participants being given access to job-related training and/or education, part-time or full-time supported employment, access to mainstream service/income support programs for which they are eligible or other forms of assistance directly related to helping participants gain stable employment or income."]
["NOFA E.5.e and f. Other Measurable Outcomes"]
[null,null,null,null,"Description of Outcome",null,null,null,null,null,"Number of Tenants who achieved outcome this reporting period"]
["Please describe another measurable outcome determined from the tenant satisfaction survey or in your application relating to PAS-specific activities this reporting period that were not listed above."]
["Please describe a measurable outcome determined from the tenant exit survey or in your application achieved this reporting period that was not listed above.: **Please note this has been changed from general tenant satisfaction survey data to tenant exit survey data.**"]
["I. Tenant Satisfaction Survey \nMust submit a current copy of the Tenant Satisfaction Survey and PAS Tenant Satisfaction Survey"]
["1. How often do you conduct the survey(s) for this shelter? "]
[]
["Most current copy or sample of tenant satisfaction survey and PAS tenant satisfaction survey submitted with Report? (Required)",null,null,null,null,null,"Select One"]
["II. Tenant Exit Survey\nMust submit a current copy of the Tenant Exit Survey"]
["1. Provide the reason(s) given for tenants exiting the shelter."]
[]
["Most current copy or sample of tenant exit survey submitted with Report? (Required)",null,null,null,null,null,"Select One"]
["III. Evaluation Plan"]
["1. Describe how the questions from the general tenant satisfaction, PAS tenant satisfaction, and exit surveys are reviewed. Describe what you do with the data that results from the answers, and what your evaluation plan is with the data received from the surveys."]
[]
["2. How have you been collecting, tracking and analyzing the data (including the data from the measurable outcome category's listed within the Performance Measures Report) on the effectiveness of your project?"]
[]
["3. Who is analyzing the data and performing the program evaluation? (e.g. staff, consultant, etc)."]
[]
["4. What are any outcomes of the analyses? "]
[]
["Participant Referrals"]
["Please provide details of participant referrals to your facility, which should include name of referring entity, their address, contact name and phone number and the numer of referrals per entity during the 6 month reporting period. "]
["Referring Entity",null,null,"Entity Address",null,"Number of Referrals","Additional Details about Participant Referrals (Optional)"]
[]
[]
[]
[]
[]
[]
[]
[]
[]
[]
[{"$f":"IF(G4>0,\"Additional Notes on \"&G4,\"Additional Notes on Shelter\")","v":"Additional Notes on Shelter"}]

{"sheet":"Shelter 2 Metrics","index":3,"n_rows":51,"n_cols":12,"rows_kept":51,"cut":false,"hidden":true,"merged":[[42,0,42,2],[42,3,42,4],[46,0,46,2],[46,3,46,4],[50,0,50,11],[47,3,47,4],[48,3,48,4],[49,0,49,2],[49,3,49,4],[47,0,47,2],[51,0,51,11],[42,6,42,11],[43,0,43,2],[43,3,43,4],[43,6,43,11],[44,0,44,2],[44,3,44,4],[44,6,44,11],[45,0,45,2],[45,3,45,4],[45,6,45,11],[48,0,48,2],[46,6,46,11],[47,6,47,11],[48,6,48,11],[49,6,49,11],[39,6,39,11],[40,0,40,2],[40,3,40,4],[40,6,40,11],[41,0,41,2],[41,3,41,4],[41,6,41,11],[39,0,39,2],[39,3,39,4],[34,0,34,11],[36,0,36,11],[37,0,37,11],[38,0,38,11],[30,0,30,11],[31,0,31,11],[32,0,32,11],[33,0,33,11],[29,0,29,11],[35,0,35,11],[14,4,14,11],[15,0,15,3],[15,4,15,11],[24,0,24,11],[25,0,25,11],[26,0,26,11],[28,0,28,11],[19,0,19,3],[19,4,19,9],[19,10,19,11],[20,0,20,11],[21,0,21,11],[22,0,22,11],[23,0,23,5],[23,6,23,8],[27,0,27,5],[27,6,27,8],[4,0,4,11],[5,0,5,11],[6,0,6,11],[7,6,7,7],[7,9,7,10],[8,0,8,11],[16,0,16,11],[17,0,17,3],[17,4,17,9],[17,10,17,11],[18,0,18,3],[18,4,18,9],[18,10,18,11],[12,1,12,11],[13,0,13,11],[14,0,14,3],[0,7,0,11],[1,0,2,11],[3,0,3,1],[3,2,3,3],[3,4,3,5],[3,6,3,8]]}
["beginning of Shelter Metrics page 2"]
["PET ASSISTANCE AND SUPPORT (PAS) PROGRAM\nPERFORMANCE MEASURES "]
[]
["HCD Contract Number:",null,{"$f":"Certification!B14","v":0},null,"Shelter Name:",null,{"$f":"'Operating Budget'!H10","v":0}]
["Instructions: Please fill in outcomes for this reporting period for the shelter named in cell G4. Total numbers should be reported as whole numbers. Please provide as thorough a response as appropriate for narrative questions. Do Not Include Outcome information from prior reporting periods or anticipated outcomes for future periods. "]
["NOFA E.5.a. Measurable Outcomes"]
["Note: Totals of General Shelter Specific Outcomes should include all participants assisted within each category by the shelter during the reporting period, including those assisted by the PAS program."]
["Total Number of common household pets assisted by the PAS program",null,"Total number of PAS-assisted Pets receiving Behavioral Support Training from Veterinary Services",null,"Total number of PAS-assisted Pets receiving Spay/Neuter Veterinary Services",null,"Total number of PAS-assisted Pets receiving Vaccination Veterinary Services",null,null,"Total number of PAS-assisted Pets that are Emotional Support or Service Animals"]
[]
[null,"Number of Participants Assisted","Number of Shelter Beds Available","Participant's Average Length of Stay (in days):","Number of Exits to Permanent Housing:","Number of Exits to homelessness:","Number of Minor Children (ages 0-17) assisted","Number of Transition-Aged Youth (ages 18-24) assisted","Number of Seniors (ages 65+) assisted ","Number of Veterans assisted ","Number of persons with a reported disability assisted","Number of persons identifying as LGBTQIA+ assisted "]
["PAS Program Specific Outcomes:"]
["General Shelter Specific Outcomes:"]
["Brief Description of Performance Outcomes this Reporting Period:"]
["NOFA E.5.c and d. Increased Residential Stability and skills/income"]
["Please describe how both PAS participants and participants assisted by the shelter in general showed increased residential stability during this reporting period. This may include exits to permanent housing, rental application or deposit assistance, housing navigation services or other forms of assistance directly related to helping participants gain stable housing."]
["Please describe how both PAS participants and participants assisted by the shelter in general showed increased skills and/or income during this reporting period. This may include details about participants being given access to job-related training and/or education, part-time or full-time supported employment, access to mainstream service/income support programs for which they are eligible or other forms of assistance directly related to helping participants gain stable employment or income."]
["NOFA E.5.e and f. Other Measurable Outcomes"]
[null,null,null,null,"Description of Outcome",null,null,null,null,null,"Number of Tenants who achieved outcome this reporting period"]
["Please describe another measurable outcome determined from the tenant satisfaction survey or in your application relating to PAS-specific activities this reporting period that were not listed above."]
["Please describe a measurable outcome determined from the tenant exit survey or in your application achieved this reporting period that was not listed above.: **Please note this has been changed from general tenant satisfaction survey data to tenant exit survey data.**"]
["I. Tenant Satisfaction Survey \nMust submit a current copy of the Tenant Satisfaction Survey and PAS Tenant Satisfaction Survey"]
["1. How often do you conduct the survey(s) for this shelter? "]
[]
["Most current copy or sample of tenant satisfaction survey and PAS tenant satisfaction survey submitted with Report? (Required)",null,null,null,null,null,"Select One"]
["II. Tenant Exit Survey\nMust submit a current copy of the Tenant Exit Survey"]
["1. Provide the reason(s) given for tenants exiting the shelter."]
[]
["Most current copy or sample of tenant exit survey submitted with Report? (Required)",null,null,null,null,null,"Select One"]
["III. Evaluation Plan"]
["1. Describe how the questions from the general tenant satisfaction, PAS tenant satisfaction, and exit surveys are reviewed. Describe what you do with the data that results from the answers, and what your evaluation plan is with the data received from the surveys."]
[]
["2. How have you been collecting, tracking and analyzing the data (including the data from the measurable outcome category's listed within the Performance Measures Report) on the effectiveness of your project?"]
[]
["3. Who is analyzing the data and performing the program evaluation? (e.g. staff, consultant, etc)."]
[]
["4. What are any outcomes of the analyses? "]
[]
["Participant Referrals"]
["Please provide details of participant referrals to your facility, which should include name of referring entity, their address, contact name and phone number and the numer of referrals per entity during the 6 month reporting period. "]
["Referring Entity",null,null,"Entity Address",null,"Number of Referrals","Additional Details about Participant Referrals (Optional)"]
[]
[]
[]
[]
[]
[]
[]
[]
[]
[]
[{"$f":"IF(G4>0,\"Additional Notes on \"&G4,\"Additional Notes on Shelter\")","v":"Additional Notes on Shelter"}]

{"sheet":"Shelter 3 Metrics","index":4,"n_rows":51,"n_cols":12,"rows_kept":51,"cut":false,"hidden":true,"merged":[[46,0,46,2],[46,3,46,4],[46,6,46,11],[47,6,47,11],[48,6,48,11],[49,6,49,11],[50,0,50,11],[51,0,51,11],[42,6,42,11],[43,0,43,2],[43,3,43,4],[43,6,43,11],[44,0,44,2],[44,3,44,4],[44,6,44,11],[45,0,45,2],[45,3,45,4],[45,6,45,11],[48,0,48,2],[48,3,48,4],[49,0,49,2],[8,0,8,11],[0,7,0,11],[1,0,2,11],[3,0,3,1],[3,2,3,3],[3,4,3,5],[3,6,3,8],[4,0,4,11],[5,0,5,11],[6,0,6,11],[7,6,7,7],[7,9,7,10],[16,0,16,11],[17,0,17,3],[17,4,17,9],[17,10,17,11],[18,0,18,3],[18,4,18,9],[18,10,18,11],[12,1,12,11],[13,0,13,11],[14,0,14,3],[14,4,14,11],[15,0,15,3],[15,4,15,11],[24,0,24,11],[25,0,25,11],[26,0,26,11],[28,0,28,11],[19,0,19,3],[19,4,19,9],[19,10,19,11],[20,0,20,11],[21,0,21,11],[22,0,22,11],[23,0,23,5],[23,6,23,8],[27,0,27,5],[27,6,27,8],[34,0,34,11],[36,0,36,11],[37,0,37,11],[38,0,38,11],[30,0,30,11],[31,0,31,11],[32,0,32,11],[33,0,33,11],[49,3,49,4],[29,0,29,11],[35,0,35,11],[47,0,47,2],[47,3,47,4],[39,0,39,2],[39,3,39,4],[39,6,39,11],[40,0,40,2],[40,3,40,4],[40,6,40,11],[41,0,41,2],[41,3,41,4],[41,6,41,11],[42,0,42,2],[42,3,42,4]]}
["beginning of Shelter Metrics page 3"]
["PET ASSISTANCE AND SUPPORT (PAS) PROGRAM\nPERFORMANCE MEASURES "]
[]
["HCD Contract Number:",null,{"$f":"Certification!B14","v":0},null,"Shelter Name:",null,{"$f":"'Operating Budget'!J10","v":0}]
["Instructions: Please fill in outcomes for this reporting period for the shelter named in cell G4. Total numbers should be reported as whole numbers. Please provide as thorough a response as appropriate for narrative questions. Do Not Include Outcome information from prior reporting periods or anticipated outcomes for future periods. "]
["NOFA E.5.a. Measurable Outcomes"]
["Note: Totals of General Shelter Specific Outcomes should include all participants assisted within each category by the shelter during the reporting period, including those assisted by the PAS program."]
["Total Number of common household pets assisted by the PAS program",null,"Total number of PAS-assisted Pets receiving Behavioral Support Training from Veterinary Services",null,"Total number of PAS-assisted Pets receiving Spay/Neuter Veterinary Services",null,"Total number of PAS-assisted Pets receiving Vaccination Veterinary Services",null,null,"Total number of PAS-assisted Pets that are Emotional Support or Service Animals"]
[]
[null,"Number of Participants Assisted","Number of Shelter Beds Available","Participant's Average Length of Stay (in days):","Number of Exits to Permanent Housing:","Number of Exits to homelessness:","Number of Minor Children (ages 0-17) assisted","Number of Transition-Aged Youth (ages 18-24) assisted","Number of Seniors (ages 65+) assisted ","Number of Veterans assisted ","Number of persons with a reported disability assisted","Number of persons identifying as LGBTQIA+ assisted "]
["PAS Program Specific Outcomes:"]
["General Shelter Specific Outcomes:"]
["Brief Description of Performance Outcomes this Reporting Period:"]
["NOFA E.5.c and d. Increased Residential Stability and skills/income"]
["Please describe how both PAS participants and participants assisted by the shelter in general showed increased residential stability during this reporting period. This may include exits to permanent housing, rental application or deposit assistance, housing navigation services or other forms of assistance directly related to helping participants gain stable housing."]
["Please describe how both PAS participants and participants assisted by the shelter in general showed increased skills and/or income during this reporting period. This may include details about participants being given access to job-related training and/or education, part-time or full-time supported employment, access to mainstream service/income support programs for which they are eligible or other forms of assistance directly related to helping participants gain stable employment or income."]
["NOFA E.5.e and f. Other Measurable Outcomes"]
[null,null,null,null,"Description of Outcome",null,null,null,null,null,"Number of Tenants who achieved outcome this reporting period"]
["Please describe another measurable outcome determined from the tenant satisfaction survey or in your application relating to PAS-specific activities this reporting period that were not listed above."]
["Please describe a measurable outcome determined from the tenant exit survey or in your application achieved this reporting period that was not listed above.: **Please note this has been changed from general tenant satisfaction survey data to tenant exit survey data.**"]
["I. Tenant Satisfaction Survey \nMust submit a current copy of the Tenant Satisfaction Survey and PAS Tenant Satisfaction Survey"]
["1. How often do you conduct the survey(s) for this shelter? "]
[]
["Most current copy or sample of tenant satisfaction survey and PAS tenant satisfaction survey submitted with Report? (Required)",null,null,null,null,null,"Select One"]
["II. Tenant Exit Survey\nMust submit a current copy of the Tenant Exit Survey"]
["1. Provide the reason(s) given for tenants exiting the shelter."]
[]
["Most current copy or sample of tenant exit survey submitted with Report? (Required)",null,null,null,null,null,"Select One"]
["III. Evaluation Plan"]
["1. Describe how the questions from the general tenant satisfaction, PAS tenant satisfaction, and exit surveys are reviewed. Describe what you do with the data that results from the answers, and what your evaluation plan is with the data received from the surveys."]
[]
["2. How have you been collecting, tracking and analyzing the data (including the data from the measurable outcome category's listed within the Performance Measures Report) on the effectiveness of your project?"]
[]
["3. Who is analyzing the data and performing the program evaluation? (e.g. staff, consultant, etc)."]
[]
["4. What are any outcomes of the analyses? "]
[]
["Participant Referrals"]
["Please provide details of participant referrals to your facility, which should include name of referring entity, their address, contact name and phone number and the numer of referrals per entity during the 6 month reporting period. "]
["Referring Entity",null,null,"Entity Address",null,"Number of Referrals","Additional Details about Participant Referrals (Optional)"]
[]
[]
[]
[]
[]
[]
[]
[]
[]
[]
[{"$f":"IF(G4>0,\"Additional Notes on \"&G4,\"Additional Notes on Shelter\")","v":"Additional Notes on Shelter"}]

{"sheet":"Shelter 4 Metrics","index":5,"n_rows":51,"n_cols":12,"rows_kept":51,"cut":false,"hidden":true,"merged":[[46,0,46,2],[46,3,46,4],[46,6,46,11],[47,6,47,11],[48,6,48,11],[49,6,49,11],[50,0,50,11],[51,0,51,11],[42,6,42,11],[43,0,43,2],[43,3,43,4],[43,6,43,11],[44,0,44,2],[44,3,44,4],[44,6,44,11],[45,0,45,2],[45,3,45,4],[45,6,45,11],[48,0,48,2],[48,3,48,4],[49,0,49,2],[8,0,8,11],[0,7,0,11],[1,0,2,11],[3,0,3,1],[3,2,3,3],[3,4,3,5],[3,6,3,8],[4,0,4,11],[5,0,5,11],[6,0,6,11],[7,6,7,7],[7,9,7,10],[16,0,16,11],[17,0,17,3],[17,4,17,9],[17,10,17,11],[18,0,18,3],[18,4,18,9],[18,10,18,11],[12,1,12,11],[13,0,13,11],[14,0,14,3],[14,4,14,11],[15,0,15,3],[15,4,15,11],[24,0,24,11],[25,0,25,11],[26,0,26,11],[28,0,28,11],[19,0,19,3],[19,4,19,9],[19,10,19,11],[20,0,20,11],[21,0,21,11],[22,0,22,11],[23,0,23,5],[23,6,23,8],[27,0,27,5],[27,6,27,8],[34,0,34,11],[36,0,36,11],[37,0,37,11],[38,0,38,11],[30,0,30,11],[31,0,31,11],[32,0,32,11],[33,0,33,11],[49,3,49,4],[29,0,29,11],[35,0,35,11],[47,0,47,2],[47,3,47,4],[39,0,39,2],[39,3,39,4],[39,6,39,11],[40,0,40,2],[40,3,40,4],[40,6,40,11],[41,0,41,2],[41,3,41,4],[41,6,41,11],[42,0,42,2],[42,3,42,4]]}
["beginning of Shelter Metrics page 4"]
["PET ASSISTANCE AND SUPPORT (PAS) PROGRAM\nPERFORMANCE MEASURES "]
[]
["HCD Contract Number:",null,{"$f":"Certification!B14","v":0},null,"Shelter Name:",null,{"$f":"'Operating Budget'!L10","v":0}]
["Instructions: Please fill in outcomes for this reporting period for the shelter named in cell G4. Total numbers should be reported as whole numbers. Please provide as thorough a response as appropriate for narrative questions. Do Not Include Outcome information from prior reporting periods or anticipated outcomes for future periods. "]
["NOFA E.5.a. Measurable Outcomes"]
["Note: Totals of General Shelter Specific Outcomes should include all participants assisted within each category by the shelter during the reporting period, including those assisted by the PAS program."]
["Total Number of common household pets assisted by the PAS program",null,"Total number of PAS-assisted Pets receiving Behavioral Support Training from Veterinary Services",null,"Total number of PAS-assisted Pets receiving Spay/Neuter Veterinary Services",null,"Total number of PAS-assisted Pets receiving Vaccination Veterinary Services",null,null,"Total number of PAS-assisted Pets that are Emotional Support or Service Animals"]
[]
[null,"Number of Participants Assisted","Number of Shelter Beds Available","Participant's Average Length of Stay (in days):","Number of Exits to Permanent Housing:","Number of Exits to homelessness:","Number of Minor Children (ages 0-17) assisted","Number of Transition-Aged Youth (ages 18-24) assisted","Number of Seniors (ages 65+) assisted ","Number of Veterans assisted ","Number of persons with a reported disability assisted","Number of persons identifying as LGBTQIA+ assisted "]
["PAS Program Specific Outcomes:"]
["General Shelter Specific Outcomes:"]
["Brief Description of Performance Outcomes this Reporting Period:"]
["NOFA E.5.c and d. Increased Residential Stability and skills/income"]
["Please describe how both PAS participants and participants assisted by the shelter in general showed increased residential stability during this reporting period. This may include exits to permanent housing, rental application or deposit assistance, housing navigation services or other forms of assistance directly related to helping participants gain stable housing."]
["Please describe how both PAS participants and participants assisted by the shelter in general showed increased skills and/or income during this reporting period. This may include details about participants being given access to job-related training and/or education, part-time or full-time supported employment, access to mainstream service/income support programs for which they are eligible or other forms of assistance directly related to helping participants gain stable employment or income."]
["NOFA E.5.e and f. Other Measurable Outcomes"]
[null,null,null,null,"Description of Outcome",null,null,null,null,null,"Number of Tenants who achieved outcome this reporting period"]
["Please describe another measurable outcome determined from the tenant satisfaction survey or in your application relating to PAS-specific activities this reporting period that were not listed above."]
["Please describe a measurable outcome determined from the tenant exit survey or in your application achieved this reporting period that was not listed above.: **Please note this has been changed from general tenant satisfaction survey data to tenant exit survey data.**"]
["I. Tenant Satisfaction Survey \nMust submit a current copy of the Tenant Satisfaction Survey and PAS Tenant Satisfaction Survey"]
["1. How often do you conduct the survey(s) for this shelter? "]
[]
["Most current copy or sample of tenant satisfaction survey and PAS tenant satisfaction survey submitted with Report? (Required)",null,null,null,null,null,"Select One"]
["II. Tenant Exit Survey\nMust submit a current copy of the Tenant Exit Survey"]
["1. Provide the reason(s) given for tenants exiting the shelter."]
[]
["Most current copy or sample of tenant exit survey submitted with Report? (Required)",null,null,null,null,null,"Select One"]
["III. Evaluation Plan"]
["1. Describe how the questions from the general tenant satisfaction, PAS tenant satisfaction, and exit surveys are reviewed. Describe what you do with the data that results from the answers, and what your evaluation plan is with the data received from the surveys."]
[]
["2. How have you been collecting, tracking and analyzing the data (including the data from the measurable outcome category's listed within the Performance Measures Report) on the effectiveness of your project?"]
[]
["3. Who is analyzing the data and performing the program evaluation? (e.g. staff, consultant, etc)."]
[]
["4. What are any outcomes of the analyses? "]
[]
["Participant Referrals"]
["Please provide details of participant referrals to your facility, which should include name of referring entity, their address, contact name and phone number and the numer of referrals per entity during the 6 month reporting period. "]
["Referring Entity",null,null,"Entity Address",null,"Number of Referrals","Additional Details about Participant Referrals (Optional)"]
[]
[]
[]
[]
[]
[]
[]
[]
[]
[]
[{"$f":"IF(G4>0,\"Additional Notes on \"&G4,\"Additional Notes on Shelter\")","v":"Additional Notes on Shelter"}]

{"sheet":"Shelter 5 Metrics","index":6,"n_rows":51,"n_cols":12,"rows_kept":51,"cut":false,"hidden":true,"merged":[[46,0,46,2],[46,3,46,4],[46,6,46,11],[47,6,47,11],[48,6,48,11],[49,6,49,11],[50,0,50,11],[51,0,51,11],[42,6,42,11],[43,0,43,2],[43,3,43,4],[43,6,43,11],[44,0,44,2],[44,3,44,4],[44,6,44,11],[45,0,45,2],[45,3,45,4],[45,6,45,11],[48,0,48,2],[48,3,48,4],[49,0,49,2],[8,0,8,11],[0,7,0,11],[1,0,2,11],[3,0,3,1],[3,2,3,3],[3,4,3,5],[3,6,3,8],[4,0,4,11],[5,0,5,11],[6,0,6,11],[7,6,7,7],[7,9,7,10],[16,0,16,11],[17,0,17,3],[17,4,17,9],[17,10,17,11],[18,0,18,3],[18,4,18,9],[18,10,18,11],[12,1,12,11],[13,0,13,11],[14,0,14,3],[14,4,14,11],[15,0,15,3],[15,4,15,11],[24,0,24,11],[25,0,25,11],[26,0,26,11],[28,0,28,11],[19,0,19,3],[19,4,19,9],[19,10,19,11],[20,0,20,11],[21,0,21,11],[22,0,22,11],[23,0,23,5],[23,6,23,8],[27,0,27,5],[27,6,27,8],[34,0,34,11],[36,0,36,11],[37,0,37,11],[38,0,38,11],[30,0,30,11],[31,0,31,11],[32,0,32,11],[33,0,33,11],[49,3,49,4],[29,0,29,11],[35,0,35,11],[47,0,47,2],[47,3,47,4],[39,0,39,2],[39,3,39,4],[39,6,39,11],[40,0,40,2],[40,3,40,4],[40,6,40,11],[41,0,41,2],[41,3,41,4],[41,6,41,11],[42,0,42,2],[42,3,42,4]]}
["beginning of Shelter Metrics page 5"]
["PET ASSISTANCE AND SUPPORT (PAS) PROGRAM\nPERFORMANCE MEASURES "]
[]
["HCD Contract Number:",null,{"$f":"Certification!B14","v":0},null,"Shelter Name:",null,{"$f":"'Operating Budget'!N10","v":0}]
["Instructions: Please fill in outcomes for this reporting period for the shelter named in cell G4. Total numbers should be reported as whole numbers. Please provide as thorough a response as appropriate for narrative questions. Do Not Include Outcome information from prior reporting periods or anticipated outcomes for future periods. "]
["NOFA E.5.a. Measurable Outcomes"]
["Note: Totals of General Shelter Specific Outcomes should include all participants assisted within each category by the shelter during the reporting period, including those assisted by the PAS program."]
["Total Number of common household pets assisted by the PAS program",null,"Total number of PAS-assisted Pets receiving Behavioral Support Training from Veterinary Services",null,"Total number of PAS-assisted Pets receiving Spay/Neuter Veterinary Services",null,"Total number of PAS-assisted Pets receiving Vaccination Veterinary Services",null,null,"Total number of PAS-assisted Pets that are Emotional Support or Service Animals"]
[]
[null,"Number of Participants Assisted","Number of Shelter Beds Available","Participant's Average Length of Stay (in days):","Number of Exits to Permanent Housing:","Number of Exits to homelessness:","Number of Minor Children (ages 0-17) assisted","Number of Transition-Aged Youth (ages 18-24) assisted","Number of Seniors (ages 65+) assisted ","Number of Veterans assisted ","Number of persons with a reported disability assisted","Number of persons identifying as LGBTQIA+ assisted "]
["PAS Program Specific Outcomes:"]
["General Shelter Specific Outcomes:"]
["Brief Description of Performance Outcomes this Reporting Period:"]
["NOFA E.5.c and d. Increased Residential Stability and skills/income"]
["Please describe how both PAS participants and participants assisted by the shelter in general showed increased residential stability during this reporting period. This may include exits to permanent housing, rental application or deposit assistance, housing navigation services or other forms of assistance directly related to helping participants gain stable housing."]
["Please describe how both PAS participants and participants assisted by the shelter in general showed increased skills and/or income during this reporting period. This may include details about participants being given access to job-related training and/or education, part-time or full-time supported employment, access to mainstream service/income support programs for which they are eligible or other forms of assistance directly related to helping participants gain stable employment or income."]
["NOFA E.5.e and f. Other Measurable Outcomes"]
[null,null,null,null,"Description of Outcome",null,null,null,null,null,"Number of Tenants who achieved outcome this reporting period"]
["Please describe another measurable outcome determined from the tenant satisfaction survey or in your application relating to PAS-specific activities this reporting period that were not listed above."]
["Please describe a measurable outcome determined from the tenant exit survey or in your application achieved this reporting period that was not listed above.: **Please note this has been changed from general tenant satisfaction survey data to tenant exit survey data.**"]
["I. Tenant Satisfaction Survey \nMust submit a current copy of the Tenant Satisfaction Survey and PAS Tenant Satisfaction Survey"]
["1. How often do you conduct the survey(s) for this shelter? "]
[]
["Most current copy or sample of tenant satisfaction survey and PAS tenant satisfaction survey submitted with Report? (Required)",null,null,null,null,null,"Select One"]
["II. Tenant Exit Survey\nMust submit a current copy of the Tenant Exit Survey"]
["1. Provide the reason(s) given for tenants exiting the shelter."]
[]
["Most current copy or sample of tenant exit survey submitted with Report? (Required)",null,null,null,null,null,"Select One"]
["III. Evaluation Plan"]
["1. Describe how the questions from the general tenant satisfaction, PAS tenant satisfaction, and exit surveys are reviewed. Describe what you do with the data that results from the answers, and what your evaluation plan is with the data received from the surveys."]
[]
["2. How have you been collecting, tracking and analyzing the data (including the data from the measurable outcome category's listed within the Performance Measures Report) on the effectiveness of your project?"]
[]
["3. Who is analyzing the data and performing the program evaluation? (e.g. staff, consultant, etc)."]
[]
["4. What are any outcomes of the analyses? "]
[]
["Participant Referrals"]
["Please provide details of participant referrals to your facility, which should include name of referring entity, their address, contact name and phone number and the numer of referrals per entity during the 6 month reporting period. "]
["Referring Entity",null,null,"Entity Address",null,"Number of Referrals","Additional Details about Participant Referrals (Optional)"]
[]
[]
[]
[]
[]
[]
[]
[]
[]
[]
[{"$f":"IF(G4>0,\"Additional Notes on \"&G4,\"Additional Notes on Shelter\")","v":"Additional Notes on Shelter"}]

{"sheet":"Shelter 6 Metrics","index":7,"n_rows":51,"n_cols":12,"rows_kept":51,"cut":false,"hidden":true,"merged":[[42,0,42,2],[42,3,42,4],[46,0,46,2],[46,3,46,4],[50,0,50,11],[47,3,47,4],[48,3,48,4],[49,0,49,2],[49,3,49,4],[47,0,47,2],[51,0,51,11],[42,6,42,11],[43,0,43,2],[43,3,43,4],[43,6,43,11],[44,0,44,2],[44,3,44,4],[44,6,44,11],[45,0,45,2],[45,3,45,4],[45,6,45,11],[48,0,48,2],[46,6,46,11],[47,6,47,11],[48,6,48,11],[49,6,49,11],[39,6,39,11],[40,0,40,2],[40,3,40,4],[40,6,40,11],[41,0,41,2],[41,3,41,4],[41,6,41,11],[39,0,39,2],[39,3,39,4],[36,0,36,11],[37,0,37,11],[38,0,38,11],[30,0,30,11],[31,0,31,11],[32,0,32,11],[33,0,33,11],[29,0,29,11],[35,0,35,11],[24,0,24,11],[25,0,25,11],[26,0,26,11],[28,0,28,11],[34,0,34,11],[19,0,19,3],[19,4,19,9],[19,10,19,11],[20,0,20,11],[21,0,21,11],[22,0,22,11],[23,0,23,5],[23,6,23,8],[27,0,27,5],[27,6,27,8],[16,0,16,11],[17,0,17,3],[17,4,17,9],[17,10,17,11],[18,0,18,3],[18,4,18,9],[18,10,18,11],[12,1,12,11],[13,0,13,11],[14,0,14,3],[14,4,14,11],[15,0,15,3],[15,4,15,11],[8,0,8,11],[0,7,0,11],[1,0,2,11],[3,0,3,1],[3,2,3,3],[3,4,3,5],[3,6,3,8],[4,0,4,11],[5,0,5,11],[6,0,6,11],[7,6,7,7],[7,9,7,10]]}
["beginning of Shelter Metrics page 6"]
["PET ASSISTANCE AND SUPPORT (PAS) PROGRAM\nPERFORMANCE MEASURES "]
[]
["HCD Contract Number:",null,{"$f":"Certification!B14","v":0},null,"Shelter Name:",null,{"$f":"'Operating Budget'!P10","v":0}]
["Instructions: Please fill in outcomes for this reporting period for the shelter named in cell G4. Total numbers should be reported as whole numbers. Please provide as thorough a response as appropriate for narrative questions. Do Not Include Outcome information from prior reporting periods or anticipated outcomes for future periods. "]
["NOFA E.5.a. Measurable Outcomes"]
["Note: Totals of General Shelter Specific Outcomes should include all participants assisted within each category by the shelter during the reporting period, including those assisted by the PAS program."]
["Total Number of common household pets assisted by the PAS program",null,"Total number of PAS-assisted Pets receiving Behavioral Support Training from Veterinary Services",null,"Total number of PAS-assisted Pets receiving Spay/Neuter Veterinary Services",null,"Total number of PAS-assisted Pets receiving Vaccination Veterinary Services",null,null,"Total number of PAS-assisted Pets that are Emotional Support or Service Animals"]
[]
[null,"Number of Participants Assisted","Number of Shelter Beds Available","Participant's Average Length of Stay (in days):","Number of Exits to Permanent Housing:","Number of Exits to homelessness:","Number of Minor Children (ages 0-17) assisted","Number of Transition-Aged Youth (ages 18-24) assisted","Number of Seniors (ages 65+) assisted ","Number of Veterans assisted ","Number of persons with a reported disability assisted","Number of persons identifying as LGBTQIA+ assisted "]
["PAS Program Specific Outcomes:"]
["General Shelter Specific Outcomes:"]
["Brief Description of Performance Outcomes this Reporting Period:"]
["NOFA E.5.c and d. Increased Residential Stability and skills/income"]
["Please describe how both PAS participants and participants assisted by the shelter in general showed increased residential stability during this reporting period. This may include exits to permanent housing, rental application or deposit assistance, housing navigation services or other forms of assistance directly related to helping participants gain stable housing."]
["Please describe how both PAS participants and participants assisted by the shelter in general showed increased skills and/or income during this reporting period. This may include details about participants being given access to job-related training and/or education, part-time or full-time supported employment, access to mainstream service/income support programs for which they are eligible or other forms of assistance directly related to helping participants gain stable employment or income."]
["NOFA E.5.e and f. Other Measurable Outcomes"]
[null,null,null,null,"Description of Outcome",null,null,null,null,null,"Number of Tenants who achieved outcome this reporting period"]
["Please describe another measurable outcome determined from the tenant satisfaction survey or in your application relating to PAS-specific activities this reporting period that were not listed above."]
["Please describe a measurable outcome determined from the tenant exit survey or in your application achieved this reporting period that was not listed above.: **Please note this has been changed from general tenant satisfaction survey data to tenant exit survey data.**"]
["I. Tenant Satisfaction Survey \nMust submit a current copy of the Tenant Satisfaction Survey and PAS Tenant Satisfaction Survey"]
["1. How often do you conduct the survey(s) for this shelter? "]
[]
["Most current copy or sample of tenant satisfaction survey and PAS tenant satisfaction survey submitted with Report? (Required)",null,null,null,null,null,"Select One"]
["II. Tenant Exit Survey\nMust submit a current copy of the Tenant Exit Survey"]
["1. Provide the reason(s) given for tenants exiting the shelter."]
[]
["Most current copy or sample of tenant exit survey submitted with Report? (Required)",null,null,null,null,null,"Select One"]
["III. Evaluation Plan"]
["1. Describe how the questions from the general tenant satisfaction, PAS tenant satisfaction, and exit surveys are reviewed. Describe what you do with the data that results from the answers, and what your evaluation plan is with the data received from the surveys."]
[]
["2. How have you been collecting, tracking and analyzing the data (including the data from the measurable outcome category's listed within the Performance Measures Report) on the effectiveness of your project?"]
[]
["3. Who is analyzing the data and performing the program evaluation? (e.g. staff, consultant, etc)."]
[]
["4. What are any outcomes of the analyses? "]
[]
["Participant Referrals"]
["Please provide details of participant referrals to your facility, which should include name of referring entity, their address, contact name and phone number and the numer of referrals per entity during the 6 month reporting period. "]
["Referring Entity",null,null,"Entity Address",null,"Number of Referrals","Additional Details about Participant Referrals (Optional)"]
[]
[]
[]
[]
[]
[]
[]
[]
[]
[]
[{"$f":"IF(G4>0,\"Additional Notes on \"&G4,\"Additional Notes on Shelter\")","v":"Additional Notes on Shelter"}]

{"sheet":"Shelter 7 Metrics","index":8,"n_rows":51,"n_cols":12,"rows_kept":51,"cut":false,"hidden":true,"merged":[[45,0,45,2],[45,3,45,4],[45,6,45,11],[47,0,47,2],[47,3,47,4],[46,0,46,2],[46,3,46,4],[46,6,46,11],[47,6,47,11],[43,0,43,2],[43,3,43,4],[43,6,43,11],[44,0,44,2],[44,3,44,4],[44,6,44,11],[51,0,51,11],[48,0,48,2],[48,3,48,4],[49,0,49,2],[49,3,49,4],[49,6,49,11],[50,0,50,11],[48,6,48,11],[39,0,39,2],[39,3,39,4],[39,6,39,11],[40,0,40,2],[40,3,40,4],[40,6,40,11],[41,0,41,2],[41,3,41,4],[41,6,41,11],[42,0,42,2],[42,3,42,4],[42,6,42,11],[36,0,36,11],[37,0,37,11],[38,0,38,11],[30,0,30,11],[31,0,31,11],[32,0,32,11],[33,0,33,11],[29,0,29,11],[35,0,35,11],[24,0,24,11],[25,0,25,11],[26,0,26,11],[28,0,28,11],[34,0,34,11],[19,0,19,3],[19,4,19,9],[19,10,19,11],[20,0,20,11],[21,0,21,11],[22,0,22,11],[23,0,23,5],[23,6,23,8],[27,0,27,5],[27,6,27,8],[16,0,16,11],[17,0,17,3],[17,4,17,9],[17,10,17,11],[18,0,18,3],[18,4,18,9],[18,10,18,11],[12,1,12,11],[13,0,13,11],[14,0,14,3],[14,4,14,11],[15,0,15,3],[15,4,15,11],[8,0,8,11],[0,7,0,11],[1,0,2,11],[3,0,3,1],[3,2,3,3],[3,4,3,5],[3,6,3,8],[4,0,4,11],[5,0,5,11],[6,0,6,11],[7,6,7,7],[7,9,7,10]]}
["beginning of Shelter Metrics page 7"]
["PET ASSISTANCE AND SUPPORT (PAS) PROGRAM\nPERFORMANCE MEASURES "]
[]
["HCD Contract Number:",null,{"$f":"Certification!B14","v":0},null,"Shelter Name:",null,{"$f":"'Operating Budget'!R10","v":0}]
["Instructions: Please fill in outcomes for this reporting period for the shelter named in cell G4. Total numbers should be reported as whole numbers. Please provide as thorough a response as appropriate for narrative questions. Do Not Include Outcome information from prior reporting periods or anticipated outcomes for future periods. "]
["NOFA E.5.a. Measurable Outcomes"]
["Note: Totals of General Shelter Specific Outcomes should include all participants assisted within each category by the shelter during the reporting period, including those assisted by the PAS program."]
["Total Number of common household pets assisted by the PAS program",null,"Total number of PAS-assisted Pets receiving Behavioral Support Training from Veterinary Services",null,"Total number of PAS-assisted Pets receiving Spay/Neuter Veterinary Services",null,"Total number of PAS-assisted Pets receiving Vaccination Veterinary Services",null,null,"Total number of PAS-assisted Pets that are Emotional Support or Service Animals"]
[]
[null,"Number of Participants Assisted","Number of Shelter Beds Available","Participant's Average Length of Stay (in days):","Number of Exits to Permanent Housing:","Number of Exits to homelessness:","Number of Minor Children (ages 0-17) assisted","Number of Transition-Aged Youth (ages 18-24) assisted","Number of Seniors (ages 65+) assisted ","Number of Veterans assisted ","Number of persons with a reported disability assisted","Number of persons identifying as LGBTQIA+ assisted "]
["PAS Program Specific Outcomes:"]
["General Shelter Specific Outcomes:"]
["Brief Description of Performance Outcomes this Reporting Period:"]
["NOFA E.5.c and d. Increased Residential Stability and skills/income"]
["Please describe how both PAS participants and participants assisted by the shelter in general showed increased residential stability during this reporting period. This may include exits to permanent housing, rental application or deposit assistance, housing navigation services or other forms of assistance directly related to helping participants gain stable housing."]
["Please describe how both PAS participants and participants assisted by the shelter in general showed increased skills and/or income during this reporting period. This may include details about participants being given access to job-related training and/or education, part-time or full-time supported employment, access to mainstream service/income support programs for which they are eligible or other forms of assistance directly related to helping participants gain stable employment or income."]
["NOFA E.5.e and f. Other Measurable Outcomes"]
[null,null,null,null,"Description of Outcome",null,null,null,null,null,"Number of Tenants who achieved outcome this reporting period"]
["Please describe another measurable outcome determined from the tenant satisfaction survey or in your application relating to PAS-specific activities this reporting period that were not listed above."]
["Please describe a measurable outcome determined from the tenant exit survey or in your application achieved this reporting period that was not listed above.: **Please note this has been changed from general tenant satisfaction survey data to tenant exit survey data.**"]
["I. Tenant Satisfaction Survey \nMust submit a current copy of the Tenant Satisfaction Survey and PAS Tenant Satisfaction Survey"]
["1. How often do you conduct the survey(s) for this shelter? "]
[]
["Most current copy or sample of tenant satisfaction survey and PAS tenant satisfaction survey submitted with Report? (Required)",null,null,null,null,null,"Select One"]
["II. Tenant Exit Survey\nMust submit a current copy of the Tenant Exit Survey"]
["1. Provide the reason(s) given for tenants exiting the shelter."]
[]
["Most current copy or sample of tenant exit survey submitted with Report? (Required)",null,null,null,null,null,"Select One"]
["III. Evaluation Plan"]
["1. Describe how the questions from the general tenant satisfaction, PAS tenant satisfaction, and exit surveys are reviewed. Describe what you do with the data that results from the answers, and what your evaluation plan is with the data received from the surveys."]
[]
["2. How have you been collecting, tracking and analyzing the data (including the data from the measurable outcome category's listed within the Performance Measures Report) on the effectiveness of your project?"]
[]
["3. Who is analyzing the data and performing the program evaluation? (e.g. staff, consultant, etc)."]
[]
["4. What are any outcomes of the analyses? "]
[]
["Participant Referrals"]
["Please provide details of participant referrals to your facility, which should include name of referring entity, their address, contact name and phone number and the numer of referrals per entity during the 6 month reporting period. "]
["Referring Entity",null,null,"Entity Address",null,"Number of Referrals","Additional Details about Participant Referrals (Optional)"]
[]
[]
[]
[]
[]
[]
[]
[]
[]
[]
[{"$f":"IF(G4>0,\"Additional Notes on \"&G4,\"Additional Notes on Shelter\")","v":"Additional Notes on Shelter"}]

{"sheet":"Shelter 8 Metrics","index":9,"n_rows":51,"n_cols":12,"rows_kept":51,"cut":false,"hidden":true,"merged":[[42,0,42,2],[42,3,42,4],[46,0,46,2],[46,3,46,4],[50,0,50,11],[47,3,47,4],[48,3,48,4],[49,0,49,2],[49,3,49,4],[47,0,47,2],[51,0,51,11],[42,6,42,11],[43,0,43,2],[43,3,43,4],[43,6,43,11],[44,0,44,2],[44,3,44,4],[44,6,44,11],[45,0,45,2],[45,3,45,4],[45,6,45,11],[48,0,48,2],[46,6,46,11],[47,6,47,11],[48,6,48,11],[49,6,49,11],[39,6,39,11],[40,0,40,2],[40,3,40,4],[40,6,40,11],[41,0,41,2],[41,3,41,4],[41,6,41,11],[39,0,39,2],[39,3,39,4],[36,0,36,11],[37,0,37,11],[38,0,38,11],[30,0,30,11],[31,0,31,11],[32,0,32,11],[33,0,33,11],[29,0,29,11],[35,0,35,11],[24,0,24,11],[25,0,25,11],[26,0,26,11],[28,0,28,11],[34,0,34,11],[19,0,19,3],[19,4,19,9],[19,10,19,11],[20,0,20,11],[21,0,21,11],[22,0,22,11],[23,0,23,5],[23,6,23,8],[27,0,27,5],[27,6,27,8],[16,0,16,11],[17,0,17,3],[17,4,17,9],[17,10,17,11],[18,0,18,3],[18,4,18,9],[18,10,18,11],[12,1,12,11],[13,0,13,11],[14,0,14,3],[14,4,14,11],[15,0,15,3],[15,4,15,11],[8,0,8,11],[0,7,0,11],[1,0,2,11],[3,0,3,1],[3,2,3,3],[3,4,3,5],[3,6,3,8],[4,0,4,11],[5,0,5,11],[6,0,6,11],[7,6,7,7],[7,9,7,10]]}
["beginning of Shelter Metrics page 8"]
["PET ASSISTANCE AND SUPPORT (PAS) PROGRAM\nPERFORMANCE MEASURES "]
[]
["HCD Contract Number:",null,{"$f":"Certification!B14","v":0},null,"Shelter Name:",null,{"$f":"'Operating Budget'!T10","v":0}]
["Instructions: Please fill in outcomes for this reporting period for the shelter named in cell G4. Total numbers should be reported as whole numbers. Please provide as thorough a response as appropriate for narrative questions. Do Not Include Outcome information from prior reporting periods or anticipated outcomes for future periods. "]
["NOFA E.5.a. Measurable Outcomes"]
["Note: Totals of General Shelter Specific Outcomes should include all participants assisted within each category by the shelter during the reporting period, including those assisted by the PAS program."]
["Total Number of common household pets assisted by the PAS program",null,"Total number of PAS-assisted Pets receiving Behavioral Support Training from Veterinary Services",null,"Total number of PAS-assisted Pets receiving Spay/Neuter Veterinary Services",null,"Total number of PAS-assisted Pets receiving Vaccination Veterinary Services",null,null,"Total number of PAS-assisted Pets that are Emotional Support or Service Animals"]
[]
[null,"Number of Participants Assisted","Number of Shelter Beds Available","Participant's Average Length of Stay (in days):","Number of Exits to Permanent Housing:","Number of Exits to homelessness:","Number of Minor Children (ages 0-17) assisted","Number of Transition-Aged Youth (ages 18-24) assisted","Number of Seniors (ages 65+) assisted ","Number of Veterans assisted ","Number of persons with a reported disability assisted","Number of persons identifying as LGBTQIA+ assisted "]
["PAS Program Specific Outcomes:"]
["General Shelter Specific Outcomes:"]
["Brief Description of Performance Outcomes this Reporting Period:"]
["NOFA E.5.c and d. Increased Residential Stability and skills/income"]
["Please describe how both PAS participants and participants assisted by the shelter in general showed increased residential stability during this reporting period. This may include exits to permanent housing, rental application or deposit assistance, housing navigation services or other forms of assistance directly related to helping participants gain stable housing."]
["Please describe how both PAS participants and participants assisted by the shelter in general showed increased skills and/or income during this reporting period. This may include details about participants being given access to job-related training and/or education, part-time or full-time supported employment, access to mainstream service/income support programs for which they are eligible or other forms of assistance directly related to helping participants gain stable employment or income."]
["NOFA E.5.e and f. Other Measurable Outcomes"]
[null,null,null,null,"Description of Outcome",null,null,null,null,null,"Number of Tenants who achieved outcome this reporting period"]
["Please describe another measurable outcome determined from the tenant satisfaction survey or in your application relating to PAS-specific activities this reporting period that were not listed above."]
["Please describe a measurable outcome determined from the tenant exit survey or in your application achieved this reporting period that was not listed above.: **Please note this has been changed from general tenant satisfaction survey data to tenant exit survey data.**"]
["I. Tenant Satisfaction Survey \nMust submit a current copy of the Tenant Satisfaction Survey and PAS Tenant Satisfaction Survey"]
["1. How often do you conduct the survey(s) for this shelter? "]
[]
["Most current copy or sample of tenant satisfaction survey and PAS tenant satisfaction survey submitted with Report? (Required)",null,null,null,null,null,"Select One"]
["II. Tenant Exit Survey\nMust submit a current copy of the Tenant Exit Survey"]
["1. Provide the reason(s) given for tenants exiting the shelter."]
[]
["Most current copy or sample of tenant exit survey submitted with Report? (Required)",null,null,null,null,null,"Select One"]
["III. Evaluation Plan"]
["1. Describe how the questions from the general tenant satisfaction, PAS tenant satisfaction, and exit surveys are reviewed. Describe what you do with the data that results from the answers, and what your evaluation plan is with the data received from the surveys."]
[]
["2. How have you been collecting, tracking and analyzing the data (including the data from the measurable outcome category's listed within the Performance Measures Report) on the effectiveness of your project?"]
[]
["3. Who is analyzing the data and performing the program evaluation? (e.g. staff, consultant, etc)."]
[]
["4. What are any outcomes of the analyses? "]
[]
["Participant Referrals"]
["Please provide details of participant referrals to your facility, which should include name of referring entity, their address, contact name and phone number and the numer of referrals per entity during the 6 month reporting period. "]
["Referring Entity",null,null,"Entity Address",null,"Number of Referrals","Additional Details about Participant Referrals (Optional)"]
[]
[]
[]
[]
[]
[]
[]
[]
[]
[]
[{"$f":"IF(G4>0,\"Additional Notes on \"&G4,\"Additional Notes on Shelter\")","v":"Additional Notes on Shelter"}]

{"sheet":"Shelter 9 Metrics","index":10,"n_rows":51,"n_cols":12,"rows_kept":51,"cut":false,"hidden":true,"merged":[[42,0,42,2],[42,3,42,4],[46,0,46,2],[46,3,46,4],[50,0,50,11],[47,3,47,4],[48,3,48,4],[49,0,49,2],[49,3,49,4],[47,0,47,2],[51,0,51,11],[42,6,42,11],[43,0,43,2],[43,3,43,4],[43,6,43,11],[44,0,44,2],[44,3,44,4],[44,6,44,11],[45,0,45,2],[45,3,45,4],[45,6,45,11],[48,0,48,2],[46,6,46,11],[47,6,47,11],[48,6,48,11],[49,6,49,11],[39,6,39,11],[40,0,40,2],[40,3,40,4],[40,6,40,11],[41,0,41,2],[41,3,41,4],[41,6,41,11],[39,0,39,2],[39,3,39,4],[36,0,36,11],[37,0,37,11],[38,0,38,11],[30,0,30,11],[31,0,31,11],[32,0,32,11],[33,0,33,11],[29,0,29,11],[35,0,35,11],[24,0,24,11],[25,0,25,11],[26,0,26,11],[28,0,28,11],[34,0,34,11],[19,0,19,3],[19,4,19,9],[19,10,19,11],[20,0,20,11],[21,0,21,11],[22,0,22,11],[23,0,23,5],[23,6,23,8],[27,0,27,5],[27,6,27,8],[16,0,16,11],[17,0,17,3],[17,4,17,9],[17,10,17,11],[18,0,18,3],[18,4,18,9],[18,10,18,11],[12,1,12,11],[13,0,13,11],[14,0,14,3],[14,4,14,11],[15,0,15,3],[15,4,15,11],[8,0,8,11],[0,7,0,11],[1,0,2,11],[3,0,3,1],[3,2,3,3],[3,4,3,5],[3,6,3,8],[4,0,4,11],[5,0,5,11],[6,0,6,11],[7,6,7,7],[7,9,7,10]]}
["beginning of Shelter Metrics page 9"]
["PET ASSISTANCE AND SUPPORT (PAS) PROGRAM\nPERFORMANCE MEASURES "]
[]
["HCD Contract Number:",null,{"$f":"Certification!B14","v":0},null,"Shelter Name:",null,{"$f":"'Operating Budget'!V10","v":0}]
["Instructions: Please fill in outcomes for this reporting period for the shelter named in cell G4. Total numbers should be reported as whole numbers. Please provide as thorough a response as appropriate for narrative questions. Do Not Include Outcome information from prior reporting periods or anticipated outcomes for future periods. "]
["NOFA E.5.a. Measurable Outcomes"]
["Note: Totals of General Shelter Specific Outcomes should include all participants assisted within each category by the shelter during the reporting period, including those assisted by the PAS program."]
["Total Number of common household pets assisted by the PAS program",null,"Total number of PAS-assisted Pets receiving Behavioral Support Training from Veterinary Services",null,"Total number of PAS-assisted Pets receiving Spay/Neuter Veterinary Services",null,"Total number of PAS-assisted Pets receiving Vaccination Veterinary Services",null,null,"Total number of PAS-assisted Pets that are Emotional Support or Service Animals"]
[]
[null,"Number of Participants Assisted","Number of Shelter Beds Available","Participant's Average Length of Stay (in days):","Number of Exits to Permanent Housing:","Number of Exits to homelessness:","Number of Minor Children (ages 0-17) assisted","Number of Transition-Aged Youth (ages 18-24) assisted","Number of Seniors (ages 65+) assisted ","Number of Veterans assisted ","Number of persons with a reported disability assisted","Number of persons identifying as LGBTQIA+ assisted "]
["PAS Program Specific Outcomes:"]
["General Shelter Specific Outcomes:"]
["Brief Description of Performance Outcomes this Reporting Period:"]
["NOFA E.5.c and d. Increased Residential Stability and skills/income"]
["Please describe how both PAS participants and participants assisted by the shelter in general showed increased residential stability during this reporting period. This may include exits to permanent housing, rental application or deposit assistance, housing navigation services or other forms of assistance directly related to helping participants gain stable housing."]
["Please describe how both PAS participants and participants assisted by the shelter in general showed increased skills and/or income during this reporting period. This may include details about participants being given access to job-related training and/or education, part-time or full-time supported employment, access to mainstream service/income support programs for which they are eligible or other forms of assistance directly related to helping participants gain stable employment or income."]
["NOFA E.5.e and f. Other Measurable Outcomes"]
[null,null,null,null,"Description of Outcome",null,null,null,null,null,"Number of Tenants who achieved outcome this reporting period"]
["Please describe another measurable outcome determined from the tenant satisfaction survey or in your application relating to PAS-specific activities this reporting period that were not listed above."]
["Please describe a measurable outcome determined from the tenant exit survey or in your application achieved this reporting period that was not listed above.: **Please note this has been changed from general tenant satisfaction survey data to tenant exit survey data.**"]
["I. Tenant Satisfaction Survey \nMust submit a current copy of the Tenant Satisfaction Survey and PAS Tenant Satisfaction Survey"]
["1. How often do you conduct the survey(s) for this shelter? "]
[]
["Most current copy or sample of tenant satisfaction survey and PAS tenant satisfaction survey submitted with Report? (Required)",null,null,null,null,null,"Select One"]
["II. Tenant Exit Survey\nMust submit a current copy of the Tenant Exit Survey"]
["1. Provide the reason(s) given for tenants exiting the shelter."]
[]
["Most current copy or sample of tenant exit survey submitted with Report? (Required)",null,null,null,null,null,"Select One"]
["III. Evaluation Plan"]
["1. Describe how the questions from the general tenant satisfaction, PAS tenant satisfaction, and exit surveys are reviewed. Describe what you do with the data that results from the answers, and what your evaluation plan is with the data received from the surveys."]
[]
["2. How have you been collecting, tracking and analyzing the data (including the data from the measurable outcome category's listed within the Performance Measures Report) on the effectiveness of your project?"]
[]
["3. Who is analyzing the data and performing the program evaluation? (e.g. staff, consultant, etc)."]
[]
["4. What are any outcomes of the analyses? "]
[]
["Participant Referrals"]
["Please provide details of participant referrals to your facility, which should include name of referring entity, their address, contact name and phone number and the numer of referrals per entity during the 6 month reporting period. "]
["Referring Entity",null,null,"Entity Address",null,"Number of Referrals","Additional Details about Participant Referrals (Optional)"]
[]
[]
[]
[]
[]
[]
[]
[]
[]
[]
[{"$f":"IF(G4>0,\"Additional Notes on \"&G4,\"Additional Notes on Shelter\")","v":"Additional Notes on Shelter"}]

{"sheet":"Shelter 10 Metrics","index":11,"n_rows":51,"n_cols":12,"rows_kept":51,"cut":false,"hidden":true,"merged":[[42,0,42,2],[42,3,42,4],[46,0,46,2],[46,3,46,4],[50,0,50,11],[47,3,47,4],[48,3,48,4],[49,0,49,2],[49,3,49,4],[47,0,47,2],[51,0,51,11],[42,6,42,11],[43,0,43,2],[43,3,43,4],[43,6,43,11],[44,0,44,2],[44,3,44,4],[44,6,44,11],[45,0,45,2],[45,3,45,4],[45,6,45,11],[48,0,48,2],[46,6,46,11],[47,6,47,11],[48,6,48,11],[49,6,49,11],[39,6,39,11],[40,0,40,2],[40,3,40,4],[40,6,40,11],[41,0,41,2],[41,3,41,4],[41,6,41,11],[39,0,39,2],[39,3,39,4],[36,0,36,11],[37,0,37,11],[38,0,38,11],[30,0,30,11],[31,0,31,11],[32,0,32,11],[33,0,33,11],[29,0,29,11],[35,0,35,11],[24,0,24,11],[25,0,25,11],[26,0,26,11],[28,0,28,11],[34,0,34,11],[19,0,19,3],[19,4,19,9],[19,10,19,11],[20,0,20,11],[21,0,21,11],[22,0,22,11],[23,0,23,5],[23,6,23,8],[27,0,27,5],[27,6,27,8],[16,0,16,11],[17,0,17,3],[17,4,17,9],[17,10,17,11],[18,0,18,3],[18,4,18,9],[18,10,18,11],[12,1,12,11],[13,0,13,11],[14,0,14,3],[14,4,14,11],[15,0,15,3],[15,4,15,11],[8,0,8,11],[0,7,0,11],[1,0,2,11],[3,0,3,1],[3,2,3,3],[3,4,3,5],[3,6,3,8],[4,0,4,11],[5,0,5,11],[6,0,6,11],[7,6,7,7],[7,9,7,10]]}
["beginning of Shelter Metrics page 10"]
["PET ASSISTANCE AND SUPPORT (PAS) PROGRAM\nPERFORMANCE MEASURES "]
[]
["HCD Contract Number:",null,{"$f":"Certification!B14","v":0},null,"Shelter Name:",null,{"$f":"'Operating Budget'!X10","v":0}]
["Instructions: Please fill in outcomes for this reporting period for the shelter named in cell G4. Total numbers should be reported as whole numbers. Please provide as thorough a response as appropriate for narrative questions. Do Not Include Outcome information from prior reporting periods or anticipated outcomes for future periods. "]
["NOFA E.5.a. Measurable Outcomes"]
["Note: Totals of General Shelter Specific Outcomes should include all participants assisted within each category by the shelter during the reporting period, including those assisted by the PAS program."]
["Total Number of common household pets assisted by the PAS program",null,"Total number of PAS-assisted Pets receiving Behavioral Support Training from Veterinary Services",null,"Total number of PAS-assisted Pets receiving Spay/Neuter Veterinary Services",null,"Total number of PAS-assisted Pets receiving Vaccination Veterinary Services",null,null,"Total number of PAS-assisted Pets that are Emotional Support or Service Animals"]
[]
[null,"Number of Participants Assisted","Number of Shelter Beds Available","Participant's Average Length of Stay (in days):","Number of Exits to Permanent Housing:","Number of Exits to homelessness:","Number of Minor Children (ages 0-17) assisted","Number of Transition-Aged Youth (ages 18-24) assisted","Number of Seniors (ages 65+) assisted ","Number of Veterans assisted ","Number of persons with a reported disability assisted","Number of persons identifying as LGBTQIA+ assisted "]
["PAS Program Specific Outcomes:"]
["General Shelter Specific Outcomes:"]
["Brief Description of Performance Outcomes this Reporting Period:"]
["NOFA E.5.c and d. Increased Residential Stability and skills/income"]
["Please describe how both PAS participants and participants assisted by the shelter in general showed increased residential stability during this reporting period. This may include exits to permanent housing, rental application or deposit assistance, housing navigation services or other forms of assistance directly related to helping participants gain stable housing."]
["Please describe how both PAS participants and participants assisted by the shelter in general showed increased skills and/or income during this reporting period. This may include details about participants being given access to job-related training and/or education, part-time or full-time supported employment, access to mainstream service/income support programs for which they are eligible or other forms of assistance directly related to helping participants gain stable employment or income."]
["NOFA E.5.e and f. Other Measurable Outcomes"]
[null,null,null,null,"Description of Outcome",null,null,null,null,null,"Number of Tenants who achieved outcome this reporting period"]
["Please describe another measurable outcome determined from the tenant satisfaction survey or in your application relating to PAS-specific activities this reporting period that were not listed above."]
["Please describe a measurable outcome determined from the tenant exit survey or in your application achieved this reporting period that was not listed above.: **Please note this has been changed from general tenant satisfaction survey data to tenant exit survey data.**"]
["I. Tenant Satisfaction Survey \nMust submit a current copy of the Tenant Satisfaction Survey and PAS Tenant Satisfaction Survey"]
["1. How often do you conduct the survey(s) for this shelter? "]
[]
["Most current copy or sample of tenant satisfaction survey and PAS tenant satisfaction survey submitted with Report? (Required)",null,null,null,null,null,"Select One"]
["II. Tenant Exit Survey\nMust submit a current copy of the Tenant Exit Survey"]
["1. Provide the reason(s) given for tenants exiting the shelter."]
[]
["Most current copy or sample of tenant exit survey submitted with Report? (Required)",null,null,null,null,null,"Select One"]
["III. Evaluation Plan"]
["1. Describe how the questions from the general tenant satisfaction, PAS tenant satisfaction, and exit surveys are reviewed. Describe what you do with the data that results from the answers, and what your evaluation plan is with the data received from the surveys."]
[]
["2. How have you been collecting, tracking and analyzing the data (including the data from the measurable outcome category's listed within the Performance Measures Report) on the effectiveness of your project?"]
[]
["3. Who is analyzing the data and performing the program evaluation? (e.g. staff, consultant, etc)."]
[]
["4. What are any outcomes of the analyses? "]
[]
["Participant Referrals"]
["Please provide details of participant referrals to your facility, which should include name of referring entity, their address, contact name and phone number and the numer of referrals per entity during the 6 month reporting period. "]
["Referring Entity",null,null,"Entity Address",null,"Number of Referrals","Additional Details about Participant Referrals (Optional)"]
[]
[]
[]
[]
[]
[]
[]
[]
[]
[]
[{"$f":"IF(G4>0,\"Additional Notes on \"&G4,\"Additional Notes on Shelter\")","v":"Additional Notes on Shelter"}]

{"sheet":"Shelter 11 Metrics","index":12,"n_rows":51,"n_cols":12,"rows_kept":51,"cut":false,"hidden":true,"merged":[[42,0,42,2],[42,3,42,4],[46,0,46,2],[46,3,46,4],[50,0,50,11],[47,3,47,4],[48,3,48,4],[49,0,49,2],[49,3,49,4],[47,0,47,2],[51,0,51,11],[42,6,42,11],[43,0,43,2],[43,3,43,4],[43,6,43,11],[44,0,44,2],[44,3,44,4],[44,6,44,11],[45,0,45,2],[45,3,45,4],[45,6,45,11],[48,0,48,2],[46,6,46,11],[47,6,47,11],[48,6,48,11],[49,6,49,11],[39,6,39,11],[40,0,40,2],[40,3,40,4],[40,6,40,11],[41,0,41,2],[41,3,41,4],[41,6,41,11],[39,0,39,2],[39,3,39,4],[36,0,36,11],[37,0,37,11],[38,0,38,11],[30,0,30,11],[31,0,31,11],[32,0,32,11],[33,0,33,11],[29,0,29,11],[35,0,35,11],[24,0,24,11],[25,0,25,11],[26,0,26,11],[28,0,28,11],[34,0,34,11],[19,0,19,3],[19,4,19,9],[19,10,19,11],[20,0,20,11],[21,0,21,11],[22,0,22,11],[23,0,23,5],[23,6,23,8],[27,0,27,5],[27,6,27,8],[16,0,16,11],[17,0,17,3],[17,4,17,9],[17,10,17,11],[18,0,18,3],[18,4,18,9],[18,10,18,11],[12,1,12,11],[13,0,13,11],[14,0,14,3],[14,4,14,11],[15,0,15,3],[15,4,15,11],[8,0,8,11],[0,7,0,11],[1,0,2,11],[3,0,3,1],[3,2,3,3],[3,4,3,5],[3,6,3,8],[4,0,4,11],[5,0,5,11],[6,0,6,11],[7,6,7,7],[7,9,7,10]]}
["beginning of Shelter Metrics page 11"]
["PET ASSISTANCE AND SUPPORT (PAS) PROGRAM\nPERFORMANCE MEASURES "]
[]
["HCD Contract Number:",null,{"$f":"Certification!B14","v":0},null,"Shelter Name:",null,{"$f":"'Operating Budget'!Z10","v":0}]
["Instructions: Please fill in outcomes for this reporting period for the shelter named in cell G4. Total numbers should be reported as whole numbers. Please provide as thorough a response as appropriate for narrative questions. Do Not Include Outcome information from prior reporting periods or anticipated outcomes for future periods. "]
["NOFA E.5.a. Measurable Outcomes"]
["Note: Totals of General Shelter Specific Outcomes should include all participants assisted within each category by the shelter during the reporting period, including those assisted by the PAS program."]
["Total Number of common household pets assisted by the PAS program",null,"Total number of PAS-assisted Pets receiving Behavioral Support Training from Veterinary Services",null,"Total number of PAS-assisted Pets receiving Spay/Neuter Veterinary Services",null,"Total number of PAS-assisted Pets receiving Vaccination Veterinary Services",null,null,"Total number of PAS-assisted Pets that are Emotional Support or Service Animals"]
[]
[null,"Number of Participants Assisted","Number of Shelter Beds Available","Participant's Average Length of Stay (in days):","Number of Exits to Permanent Housing:","Number of Exits to homelessness:","Number of Minor Children (ages 0-17) assisted","Number of Transition-Aged Youth (ages 18-24) assisted","Number of Seniors (ages 65+) assisted ","Number of Veterans assisted ","Number of persons with a reported disability assisted","Number of persons identifying as LGBTQIA+ assisted "]
["PAS Program Specific Outcomes:"]
["General Shelter Specific Outcomes:"]
["Brief Description of Performance Outcomes this Reporting Period:"]
["NOFA E.5.c and d. Increased Residential Stability and skills/income"]
["Please describe how both PAS participants and participants assisted by the shelter in general showed increased residential stability during this reporting period. This may include exits to permanent housing, rental application or deposit assistance, housing navigation services or other forms of assistance directly related to helping participants gain stable housing."]
["Please describe how both PAS participants and participants assisted by the shelter in general showed increased skills and/or income during this reporting period. This may include details about participants being given access to job-related training and/or education, part-time or full-time supported employment, access to mainstream service/income support programs for which they are eligible or other forms of assistance directly related to helping participants gain stable employment or income."]
["NOFA E.5.e and f. Other Measurable Outcomes"]
[null,null,null,null,"Description of Outcome",null,null,null,null,null,"Number of Tenants who achieved outcome this reporting period"]
["Please describe another measurable outcome determined from the tenant satisfaction survey or in your application relating to PAS-specific activities this reporting period that were not listed above."]
["Please describe a measurable outcome determined from the tenant exit survey or in your application achieved this reporting period that was not listed above.: **Please note this has been changed from general tenant satisfaction survey data to tenant exit survey data.**"]
["I. Tenant Satisfaction Survey \nMust submit a current copy of the Tenant Satisfaction Survey and PAS Tenant Satisfaction Survey"]
["1. How often do you conduct the survey(s) for this shelter? "]
[]
["Most current copy or sample of tenant satisfaction survey and PAS tenant satisfaction survey submitted with Report? (Required)",null,null,null,null,null,"Select One"]
["II. Tenant Exit Survey\nMust submit a current copy of the Tenant Exit Survey"]
["1. Provide the reason(s) given for tenants exiting the shelter."]
[]
["Most current copy or sample of tenant exit survey submitted with Report? (Required)",null,null,null,null,null,"Select One"]
["III. Evaluation Plan"]
["1. Describe how the questions from the general tenant satisfaction, PAS tenant satisfaction, and exit surveys are reviewed. Describe what you do with the data that results from the answers, and what your evaluation plan is with the data received from the surveys."]
[]
["2. How have you been collecting, tracking and analyzing the data (including the data from the measurable outcome category's listed within the Performance Measures Report) on the effectiveness of your project?"]
[]
["3. Who is analyzing the data and performing the program evaluation? (e.g. staff, consultant, etc)."]
[]
["4. What are any outcomes of the analyses? "]
[]
["Participant Referrals"]
["Please provide details of participant referrals to your facility, which should include name of referring entity, their address, contact name and phone number and the numer of referrals per entity during the 6 month reporting period. "]
["Referring Entity",null,null,"Entity Address",null,"Number of Referrals","Additional Details about Participant Referrals (Optional)"]
[]
[]
[]
[]
[]
[]
[]
[]
[]
[]
[{"$f":"IF(G4>0,\"Additional Notes on \"&G4,\"Additional Notes on Shelter\")","v":"Additional Notes on Shelter"}]

{"sheet":"Shelter 12 Metrics","index":13,"n_rows":51,"n_cols":12,"rows_kept":51,"cut":false,"hidden":true,"merged":[[42,0,42,2],[42,3,42,4],[46,0,46,2],[46,3,46,4],[50,0,50,11],[47,3,47,4],[48,3,48,4],[49,0,49,2],[49,3,49,4],[47,0,47,2],[51,0,51,11],[42,6,42,11],[43,0,43,2],[43,3,43,4],[43,6,43,11],[44,0,44,2],[44,3,44,4],[44,6,44,11],[45,0,45,2],[45,3,45,4],[45,6,45,11],[48,0,48,2],[46,6,46,11],[47,6,47,11],[48,6,48,11],[49,6,49,11],[39,6,39,11],[40,0,40,2],[40,3,40,4],[40,6,40,11],[41,0,41,2],[41,3,41,4],[41,6,41,11],[39,0,39,2],[39,3,39,4],[36,0,36,11],[37,0,37,11],[38,0,38,11],[30,0,30,11],[31,0,31,11],[32,0,32,11],[33,0,33,11],[29,0,29,11],[35,0,35,11],[24,0,24,11],[25,0,25,11],[26,0,26,11],[28,0,28,11],[34,0,34,11],[19,0,19,3],[19,4,19,9],[19,10,19,11],[20,0,20,11],[21,0,21,11],[22,0,22,11],[23,0,23,5],[23,6,23,8],[27,0,27,5],[27,6,27,8],[16,0,16,11],[17,0,17,3],[17,4,17,9],[17,10,17,11],[18,0,18,3],[18,4,18,9],[18,10,18,11],[12,1,12,11],[13,0,13,11],[14,0,14,3],[14,4,14,11],[15,0,15,3],[15,4,15,11],[8,0,8,11],[0,7,0,11],[1,0,2,11],[3,0,3,1],[3,2,3,3],[3,4,3,5],[3,6,3,8],[4,0,4,11],[5,0,5,11],[6,0,6,11],[7,6,7,7],[7,9,7,10]]}
["beginning of Shelter Metrics page 12"]
["PET ASSISTANCE AND SUPPORT (PAS) PROGRAM\nPERFORMANCE MEASURES "]
[]
["HCD Contract Number:",null,{"$f":"Certification!B14","v":0},null,"Shelter Name:",null,{"$f":"'Operating Budget'!AB10","v":0}]
["Instructions: Please fill in outcomes for this reporting period for the shelter named in cell G4. Total numbers should be reported as whole numbers. Please provide as thorough a response as appropriate for narrative questions. Do Not Include Outcome information from prior reporting periods or anticipated outcomes for future periods. "]
["NOFA E.5.a. Measurable Outcomes"]
["Note: Totals of General Shelter Specific Outcomes should include all participants assisted within each category by the shelter during the reporting period, including those assisted by the PAS program."]
["Total Number of common household pets assisted by the PAS program",null,"Total number of PAS-assisted Pets receiving Behavioral Support Training from Veterinary Services",null,"Total number of PAS-assisted Pets receiving Spay/Neuter Veterinary Services",null,"Total number of PAS-assisted Pets receiving Vaccination Veterinary Services",null,null,"Total number of PAS-assisted Pets that are Emotional Support or Service Animals"]
[]
[null,"Number of Participants Assisted","Number of Shelter Beds Available","Participant's Average Length of Stay (in days):","Number of Exits to Permanent Housing:","Number of Exits to homelessness:","Number of Minor Children (ages 0-17) assisted","Number of Transition-Aged Youth (ages 18-24) assisted","Number of Seniors (ages 65+) assisted ","Number of Veterans assisted ","Number of persons with a reported disability assisted","Number of persons identifying as LGBTQIA+ assisted "]
["PAS Program Specific Outcomes:"]
["General Shelter Specific Outcomes:"]
["Brief Description of Performance Outcomes this Reporting Period:"]
["NOFA E.5.c and d. Increased Residential Stability and skills/income"]
["Please describe how both PAS participants and participants assisted by the shelter in general showed increased residential stability during this reporting period. This may include exits to permanent housing, rental application or deposit assistance, housing navigation services or other forms of assistance directly related to helping participants gain stable housing."]
["Please describe how both PAS participants and participants assisted by the shelter in general showed increased skills and/or income during this reporting period. This may include details about participants being given access to job-related training and/or education, part-time or full-time supported employment, access to mainstream service/income support programs for which they are eligible or other forms of assistance directly related to helping participants gain stable employment or income."]
["NOFA E.5.e and f. Other Measurable Outcomes"]
[null,null,null,null,"Description of Outcome",null,null,null,null,null,"Number of Tenants who achieved outcome this reporting period"]
["Please describe another measurable outcome determined from the tenant satisfaction survey or in your application relating to PAS-specific activities this reporting period that were not listed above."]
["Please describe a measurable outcome determined from the tenant exit survey or in your application achieved this reporting period that was not listed above.: **Please note this has been changed from general tenant satisfaction survey data to tenant exit survey data.**"]
["I. Tenant Satisfaction Survey \nMust submit a current copy of the Tenant Satisfaction Survey and PAS Tenant Satisfaction Survey"]
["1. How often do you conduct the survey(s) for this shelter? "]
[]
["Most current copy or sample of tenant satisfaction survey and PAS tenant satisfaction survey submitted with Report? (Required)",null,null,null,null,null,"Select One"]
["II. Tenant Exit Survey\nMust submit a current copy of the Tenant Exit Survey"]
["1. Provide the reason(s) given for tenants exiting the shelter."]
[]
["Most current copy or sample of tenant exit survey submitted with Report? (Required)",null,null,null,null,null,"Select One"]
["III. Evaluation Plan"]
["1. Describe how the questions from the general tenant satisfaction, PAS tenant satisfaction, and exit surveys are reviewed. Describe what you do with the data that results from the answers, and what your evaluation plan is with the data received from the surveys."]
[]
["2. How have you been collecting, tracking and analyzing the data (including the data from the measurable outcome category's listed within the Performance Measures Report) on the effectiveness of your project?"]
[]
["3. Who is analyzing the data and performing the program evaluation? (e.g. staff, consultant, etc)."]
[]
["4. What are any outcomes of the analyses? "]
[]
["Participant Referrals"]
["Please provide details of participant referrals to your facility, which should include name of referring entity, their address, contact name and phone number and the numer of referrals per entity during the 6 month reporting period. "]
["Referring Entity",null,null,"Entity Address",null,"Number of Referrals","Additional Details about Participant Referrals (Optional)"]
[]
[]
[]
[]
[]
[]
[]
[]
[]
[]
[{"$f":"IF(G4>0,\"Additional Notes on \"&G4,\"Additional Notes on Shelter\")","v":"Additional Notes on Shelter"}]

{"sheet":"Rep Worksheet","index":14,"n_rows":43,"n_cols":27,"rows_kept":43,"cut":false,"hidden":true,"merged":[[42,0,42,2],[40,20,40,22],[40,23,40,25],[41,0,41,2],[41,3,41,4],[41,5,41,6],[41,11,41,12],[41,7,41,8],[41,9,41,10],[41,16,41,17],[41,20,41,22],[41,23,41,25],[40,0,40,2],[40,3,40,4],[40,5,40,6],[40,16,40,17],[42,23,42,25],[42,3,42,4],[42,5,42,6],[42,11,42,12],[42,7,42,8],[42,9,42,10],[42,16,42,17],[42,20,42,22],[15,23,15,25],[17,23,17,25],[18,23,18,25],[19,23,19,25],[20,23,20,25],[21,23,21,25],[36,20,36,22],[36,23,36,25],[37,20,37,22],[37,23,37,25],[33,20,33,22],[35,16,35,17],[34,23,34,25],[35,23,35,25],[34,20,34,22],[35,20,35,22],[32,16,32,17],[33,16,33,17],[22,23,22,25],[39,0,39,2],[39,3,39,4],[39,5,39,6],[39,11,39,12],[39,7,39,8],[39,9,39,10],[39,16,39,17],[38,20,38,22],[38,23,38,25],[39,20,39,22],[39,23,39,25],[36,16,36,17],[37,0,37,2],[37,3,37,4],[37,5,37,6],[37,11,37,12],[37,7,37,8],[37,9,37,10],[37,16,37,17],[38,0,38,2],[38,3,38,4],[38,5,38,6],[38,11,38,12],[38,7,38,8],[38,9,38,10],[38,16,38,17],[35,0,35,2],[30,9,30,10],[34,7,34,8],[35,3,35,4],[35,5,35,6],[36,0,36,2],[36,3,36,4],[36,5,36,6],[36,11,36,12],[36,7,36,8],[36,9,36,10],[18,11,18,14],[17,0,17,1],[15,0,15,1],[25,0,25,1],[26,0,26,1],[32,23,32,25],[31,11,31,12],[31,7,31,8],[23,0,23,1],[28,0,28,1],[20,0,20,1],[16,0,16,1],[20,7,20,10],[21,7,21,10],[22,7,22,10],[20,11,20,14],[24,7,24,10],[25,7,25,10],[26,7,26,10],[27,7,27,10],[31,5,31,6],[23,7,23,10],[21,11,21,14],[22,11,22,14],[13,3,13,5],[13,6,13,8],[15,18,15,19],[15,16,15,17],[15,7,15,10],[16,7,16,10],[17,7,17,10],[15,11,15,14],[16,11,16,14],[17,11,17,14],[18,0,18,1],[14,15,14,25],[12,13,12,14],[13,13,13,14],[19,11,19,14],[6,3,6,8],[18,7,18,10],[19,7,19,10],[11,9,11,10],[11,11,11,12],[11,3,11,5],[10,6,10,8],[11,6,11,8],[9,9,9,10],[8,9,8,10],[8,11,8,12],[14,0,14,14],[6,0,7,2],[19,0,19,1],[7,11,7,12],[7,3,7,8],[8,3,8,8],[9,3,9,8],[12,3,12,5],[0,0,1,25],[2,0,2,25],[3,0,3,25],[12,9,12,12],[11,23,11,24],[6,9,6,10],[7,9,7,10],[6,11,6,12],[4,0,4,12],[5,0,5,12],[4,13,4,26],[5,13,5,26],[8,0,9,2],[10,0,12,2],[12,6,12,8],[9,11,9,12],[10,3,10,5],[11,20,11,21],[34,16,34,17],[30,0,30,2],[30,16,30,17],[31,3,31,4],[33,3,33,4],[33,11,33,12],[33,7,33,8],[33,9,33,10],[31,0,31,2],[30,3,30,4],[30,5,30,6],[30,11,30,12],[30,7,30,8],[31,16,31,17],[34,0,34,2],[24,15,24,25],[24,0,24,1],[33,23,33,25],[32,20,32,22],[32,0,32,2],[33,0,33,2],[21,0,21,1],[22,0,22,1],[32,11,32,12],[32,7,32,8],[33,5,33,6],[32,5,32,6],[26,11,26,14],[31,9,31,10],[27,0,27,1],[23,11,23,14],[24,11,24,14],[25,11,25,14],[30,23,30,25],[31,23,31,25],[31,20,31,22],[30,20,30,22],[29,0,29,25],[27,11,27,14],[40,11,40,12],[40,7,40,8],[40,9,40,10],[34,9,34,10],[32,3,32,4],[35,7,35,8],[35,9,35,10],[35,11,35,12],[34,3,34,4],[34,5,34,6],[34,11,34,12],[32,9,32,10]]}
["Pet Assistance and Support (PAS)"]
[]
["Review Worksheet"]
[]
["Section 1",null,null,null,null,null,null,null,null,null,null,null,null,"Section 2"]
["General Information ",null,null,null,null,null,null,null,null,null,null,null,null,"Funding Overview\nFill in the green cells with corresponding report years' operating budget information."]
["Rep Information",null,null,"Reviewing Rep Name",null,null,null,null,null,"Review Start Date",null,"Review End Date",null,null,"Jul-Dec 2022","Jan-Jun 2023","Year 1 Total","Jul-Dec 2023","Jan-Jun 2024","Year 2 Total","Jul-Dec 2024","Jan-Jun 2025","Year 3 Total","Jul-Dec 2025\nROUND 3 ONLY","Jan-Jun 2026\nROUND 3 ONLY","Year 4 Total","Cumulative Total"]
[null,null,null,null,null,null,null,null,null,null,null,null,null,"Disbursed Amount",0,0,{"$f":"SUM(O8+P8)","v":0},0,0,{"$f":"SUM(R8+S8)","v":0},null,null,{"$f":"SUM(U8,V8)","v":0},null,null,{"$f":"SUM(X8+Y8)","v":0},{"$f":"SUM(Q8,T8,W8)","v":0}]
["Manager Information",null,null,"Reviewing Manager Name",null,null,null,null,null,"Review Start Date",null,"Manager Approval Date",null,"PAS Reimbusement Amount",0,0,{"$f":"SUM(O9+P9)","v":0},0,0,{"$f":"SUM(R9+S9)","v":0},null,null,{"$f":"SUM(U9+V9)","v":0},null,null,{"$f":"SUM(X9+Y9)","v":0},{"$f":"SUM(Q9,T9,W9)","v":0}]
[null,null,null,null,null,null,null,null,null,null,null,null,null,"PAS Interest",0,0,{"$f":"SUM(O10+P10)","v":0},0,0,{"$f":"SUM(R10+S10)","v":0},0,0,{"$f":"SUM(U10+V10)","v":0},0,0,{"$f":"SUM(X10+Y10)","v":0},{"$f":"SUM(Q10,T10,W10)","v":0}]
["General Applicant Information",null,null,"Grantee/Contractor Name",null,null,"Contract #",null,null,"PAS Round 2 Award:",{"$f":"Certification!$H$14","v":0},"PAS Round 3 Award:",{"$f":"Certification!H15","v":0},"PAS Expenses",0,0,{"$f":"SUM(O11+P11)","v":0},0,0,{"$f":"SUM(R11+S11)","v":0},0,0,{"$f":"SUM(U11+V11)","v":0},0,0,{"$f":"SUM(X11+Y11)","v":0},{"$f":"SUM(Q11,T11,W11)","v":0}]
[null,null,null,{"$f":"Certification!B15","v":0},null,null,{"$f":"Certification!B14","v":0},null,null,"Total PAS Funds",null,{"$f":"Certification!H16","v":0},null,"PAS NOI",{"$f":"SUM(O8+O10)-(O11)","v":0},{"$f":"SUM(P8+P10)-(P11)","v":0},{"$f":"SUM(Q8+Q10)-(Q11+Q9)","v":0},{"$f":"SUM(R8+R10)-(R11)","v":0},{"$f":"SUM(S8+S10)-(S11)","v":0},{"$f":"SUM(T8+T10)-(T11+T9)","v":0},null,null,{"$f":"IF(U10>0,(P13+P14+U10+V10)-U11-V11,0)","v":0},null,null,{"$f":"IF(X11>0,(P13+P14+X10+Y10)-X11-Y11,0)","v":0},{"$f":"SUM(AA8+AA9+AA10)-(AA9+AA11)","v":0}]
[null,null,null,"Reporting Period",null,null,"Preparer Name",null,null,"Preparer Contact Information",null,null,null,"Round 2 Remaining:\nExpenditure Deadline: 6/30/2025",null,{"$f":"MAX(K11-AA11+AA10,0)","v":0}]
[null,null,null,{"$f":"Certification!B21","v":"Select One"},null,null,{"$f":"Certification!B17","v":0},null,null,"Email:",{"$f":"Certification!B19","v":0},"Phone: ",{"$f":"Certification!B18","v":0},"Round 3 Remaining:\nExpenditure Deadline: 6/30/2026",null,{"$f":"IF(P13>0,M11,L12-AA11+AA10)","v":0}]
["Section 3\nFinancial Summary",null,null,null,null,null,null,null,null,null,null,null,null,null,null,"Section 4\nPAS Expenditures"]
["Name of Shelter",null,"Date Shelter Began Operation","PAS Funding Expended this Period","PAS Total Revenue","PAS Total Expenses","PAS Net Operating Income","Additional Notes",null,null,null,"Rep Concerns and Comments",null,null,null,"Eligible Activity","Original Award Amount \n(See Standard Agreement)",null,"Current Award Amount \n(Per Current Approved Budget)",null,"Total Expended This Reporting Period","Total Expended to Date","Total Remaining","Additional Comments"]
[{"$f":"'Operating Budget'!F10","v":0},null,{"$f":"'Operating Budget'!F12","v":"00:00:00"},{"$f":"'Operating Budget'!F17","v":0},{"$f":"'Operating Budget'!F17","v":0},{"$f":"'Operating Budget'!F$27","v":0},{"$f":"E17-F17","v":0},{"$f":"'Operating Budget'!F$33","v":0},null,null,null,null,null,null,null,null,"Round 2","Round 3","Round 2","Round 3"]
[{"$f":"'Operating Budget'!H10","v":0},null,{"$f":"'Operating Budget'!H12","v":"00:00:00"},{"$f":"'Operating Budget'!H17","v":0},{"$f":"'Operating Budget'!H17","v":0},{"$f":"'Operating Budget'!H$27","v":0},{"$f":"E18-F18","v":0},{"$f":"'Operating Budget'!H$33","v":0},null,null,null,null,null,null,null,"Crates and Kennels",null,null,null,null,{"$f":"SUM('Operating Budget'!$F21:$AC21)","v":0},null,{"$f":"S18+T18-V18","v":0}]
[{"$f":"'Operating Budget'!J10","v":0},null,{"$f":"'Operating Budget'!J12","v":"00:00:00"},{"$f":"'Operating Budget'!J17","v":0},{"$f":"'Operating Budget'!J17","v":0},{"$f":"'Operating Budget'!J$27","v":0},0,{"$f":"'Operating Budget'!J$33","v":0},null,null,null,null,null,null,null,"Pet Food and Supply",null,null,null,null,{"$f":"SUM('Operating Budget'!$F22:$AC22)","v":0},null,{"$f":"S19+T19-V19","v":0}]
[{"$f":"'Operating Budget'!L10","v":0},null,{"$f":"'Operating Budget'!L12","v":"00:00:00"},{"$f":"'Operating Budget'!L17","v":0},{"$f":"'Operating Budget'!L17","v":0},{"$f":"'Operating Budget'!L$27","v":0},0,{"$f":"'Operating Budget'!L$33","v":0},null,null,null,null,null,null,null,"Veterinarian Services",null,null,null,null,{"$f":"SUM('Operating Budget'!$F23:$AC23)","v":0},null,0]
[{"$f":"'Operating Budget'!N10","v":0},null,{"$f":"'Operating Budget'!N12","v":"00:00:00"},{"$f":"'Operating Budget'!N$17","v":0},{"$f":"'Operating Budget'!N$17","v":0},{"$f":"'Operating Budget'!N$27","v":0},0,{"$f":"'Operating Budget'!N$33","v":0},null,null,null,null,null,null,null,"Staff for PAS",null,null,null,null,{"$f":"SUM('Operating Budget'!$F24:$AC24)","v":0},null,0]
[{"$f":"'Operating Budget'!P10","v":0},null,{"$f":"'Operating Budget'!P12","v":"00:00:00"},{"$f":"'Operating Budget'!P$17","v":0},{"$f":"'Operating Budget'!P$17","v":0},{"$f":"'Operating Budget'!P$27","v":0},0,{"$f":"'Operating Budget'!P$33","v":0},null,null,null,null,null,null,null,"PAS Independent Audit",null,null,null,null,{"$f":"SUM('Operating Budget'!$F25:$AC25)","v":0},null,0]
[{"$f":"'Operating Budget'!R10","v":0},null,{"$f":"'Operating Budget'!R12","v":"00:00:00"},{"$f":"'Operating Budget'!R$17","v":0},{"$f":"'Operating Budget'!R$17","v":0},{"$f":"'Operating Budget'!R$27","v":0},0,{"$f":"'Operating Budget'!R$33","v":0},null,null,null,null,null,null,null,"PAS Liability Insurance",null,null,null,null,{"$f":"SUM('Operating Budget'!$F26:$AC26)","v":0},null,0]
[{"$f":"'Operating Budget'!T10","v":0},null,{"$f":"'Operating Budget'!T12","v":"00:00:00"},{"$f":"'Operating Budget'!T$17","v":0},{"$f":"'Operating Budget'!T$17","v":0},{"$f":"'Operating Budget'!T$27","v":0},0,{"$f":"'Operating Budget'!T$33","v":0},null,null,null,null,null,null,null,"Total:",{"$f":"SUM(Q18:Q23)","v":0},{"$f":"SUM(R18:R23)","v":0},0,0,{"$f":"SUM(U18:U23)","v":0},{"$f":"SUM(V18:V23)","v":0},{"$f":"S24+T24-V24","v":0}]
[{"$f":"'Operating Budget'!V10","v":0},null,{"$f":"'Operating Budget'!V12","v":"00:00:00"},{"$f":"'Operating Budget'!V$17","v":0},{"$f":"'Operating Budget'!V$17","v":0},{"$f":"'Operating Budget'!V$27","v":0},0,{"$f":"'Operating Budget'!V$33","v":0},null,null,null,null,null,null,null,"General Notes on Contract"]
[{"$f":"'Operating Budget'!X10","v":0},null,{"$f":"'Operating Budget'!X12","v":"00:00:00"},{"$f":"'Operating Budget'!X$17","v":0},{"$f":"'Operating Budget'!X$17","v":0},{"$f":"'Operating Budget'!X$27","v":0},0,{"$f":"'Operating Budget'!X$33","v":0}]
[{"$f":"'Operating Budget'!Z10","v":0},null,{"$f":"'Operating Budget'!Z12","v":"00:00:00"},{"$f":"'Operating Budget'!Z$17","v":0},{"$f":"'Operating Budget'!Z$17","v":0},{"$f":"'Operating Budget'!Z$27","v":0},0,{"$f":"'Operating Budget'!Z$33","v":0}]
[{"$f":"'Operating Budget'!AB10","v":0},null,{"$f":"'Operating Budget'!AB12","v":"00:00:00"},{"$f":"'Operating Budget'!AB$17","v":0},{"$f":"'Operating Budget'!AB$17","v":0},{"$f":"'Operating Budget'!AB$27","v":0},0,{"$f":"'Operating Budget'!AB$33","v":0}]
["Total:",null,null,{"$f":"SUM(D17:D28)","v":0},{"$f":"SUM(E17:E28)","v":0},{"$f":"SUM(F17:F28)","v":0},0]
["Section 5\nTenant Surveys"]
["Shelter",null,null,"Did the Grantee Submit copies of their tenant satisfaction and PAS tenant satisfaction surveys?",null,"Did the Grantee Submit copies of their tenant exit surveys?",null,"How often is the survey conducted?",null,"Reasons Given for Tenants Exiting the Shelter",null,"How Questions Are Reviewed",null,"How Data is Collected and Tracked","Who is Analyzing","Outcomes of Analysis","Rep Concerns and Comments",null,"# of Referring Entities","# of Referrals","How PAS Participants Demonstrated Increased residential Stability ",null,null,"How participants demonstrated increased skills and/or income"]
[{"$f":"'Shelter 1 Metrics'!$G$4","v":0},null,null,{"$f":"'Shelter 1 Metrics'!$G$24","v":"Select One"},null,{"$f":"'Shelter 1 Metrics'!$G$28","v":"Select One"},null,{"$f":"'Shelter 1 Metrics'!$A$23","v":0},null,{"$f":"'Shelter 1 Metrics'!$A$27","v":0},null,{"$f":"'Shelter 1 Metrics'!$A$31","v":0},null,{"$f":"'Shelter 1 Metrics'!$A$33","v":0},{"$f":"'Shelter 1 Metrics'!$A$35","v":0},{"$f":"'Shelter 1 Metrics'!$A$37","v":0},null,null,{"$f":"COUNTA('Shelter 1 Metrics'!$A$41:$C$50)","v":0},{"$f":"SUM('Shelter 1 Metrics'!$F$41:$F$50)","v":0},{"$f":"'Shelter 1 Metrics'!$E$15","v":0},null,null,{"$f":"'Shelter 1 Metrics'!$E$16","v":0}]
[{"$f":"'Shelter 2 Metrics'!$G$4","v":0},null,null,{"$f":"'Shelter 2 Metrics'!$G$24","v":"Select One"},null,{"$f":"'Shelter 2 Metrics'!$G$28","v":"Select One"},null,{"$f":"'Shelter 2 Metrics'!$A$23","v":0},null,{"$f":"'Shelter 2 Metrics'!$A$27","v":0},null,{"$f":"'Shelter 2 Metrics'!$A$31","v":0},null,{"$f":"'Shelter 2 Metrics'!$A$33","v":0},{"$f":"'Shelter 2 Metrics'!$A$35","v":0},{"$f":"'Shelter 2 Metrics'!$A$37","v":0},null,null,{"$f":"COUNTA('Shelter 2 Metrics'!$A$41:$C$50)","v":0},{"$f":"SUM('Shelter 2 Metrics'!$F$41:$F$50)","v":0},{"$f":"'Shelter 2 Metrics'!$E$15","v":0},null,null,{"$f":"'Shelter 2 Metrics'!$E$16","v":0}]
[{"$f":"'Shelter 3 Metrics'!$G$4","v":0},null,null,{"$f":"'Shelter 3 Metrics'!$G$24","v":"Select One"},null,{"$f":"'Shelter 3 Metrics'!$G$28","v":"Select One"},null,{"$f":"'Shelter 3 Metrics'!$A$23","v":0},null,{"$f":"'Shelter 3 Metrics'!$A$27","v":0},null,{"$f":"'Shelter 3 Metrics'!$A$31","v":0},null,{"$f":"'Shelter 3 Metrics'!$A$33","v":0},{"$f":"'Shelter 3 Metrics'!$A$35","v":0},{"$f":"'Shelter 3 Metrics'!$A$37","v":0},null,null,{"$f":"COUNTA('Shelter 3 Metrics'!$A$41:$C$50)","v":0},{"$f":"SUM('Shelter 3 Metrics'!$F$41:$F$50)","v":0},{"$f":"'Shelter 3 Metrics'!$E$15","v":0},null,null,{"$f":"'Shelter 3 Metrics'!$E$16","v":0}]
[{"$f":"'Shelter 4 Metrics'!$G$4","v":0},null,null,{"$f":"'Shelter 4 Metrics'!$G$24","v":"Select One"},null,{"$f":"'Shelter 4 Metrics'!$G$28","v":"Select One"},null,{"$f":"'Shelter 4 Metrics'!$A$23","v":0},null,{"$f":"'Shelter 4 Metrics'!$A$27","v":0},null,{"$f":"'Shelter 4 Metrics'!$A$31","v":0},null,{"$f":"'Shelter 4 Metrics'!$A$33","v":0},{"$f":"'Shelter 4 Metrics'!$A$35","v":0},{"$f":"'Shelter 4 Metrics'!$A$37","v":0},null,null,{"$f":"COUNTA('Shelter 4 Metrics'!$A$41:$C$50)","v":0},{"$f":"SUM('Shelter 4 Metrics'!$F$41:$F$50)","v":0},{"$f":"'Shelter 4 Metrics'!$E$15","v":0},null,null,{"$f":"'Shelter 4 Metrics'!$E$16","v":0}]
[{"$f":"'Shelter 5 Metrics'!$G$4","v":0},null,null,{"$f":"'Shelter 5 Metrics'!$G$24","v":"Select One"},null,{"$f":"'Shelter 5 Metrics'!$G$28","v":"Select One"},null,{"$f":"'Shelter 5 Metrics'!$A$23","v":0},null,{"$f":"'Shelter 5 Metrics'!$A$27","v":0},null,{"$f":"'Shelter 5 Metrics'!$A$31","v":0},null,{"$f":"'Shelter 5 Metrics'!$A$33","v":0},{"$f":"'Shelter 5 Metrics'!$A$35","v":0},{"$f":"'Shelter 5 Metrics'!$A$37","v":0},null,null,{"$f":"COUNTA('Shelter 5 Metrics'!$A$41:$C$50)","v":0},{"$f":"SUM('Shelter 5 Metrics'!$F$41:$F$50)","v":0},{"$f":"'Shelter 5 Metrics'!$E$15","v":0},null,null,{"$f":"'Shelter 5 Metrics'!$E$16","v":0}]
[{"$f":"'Shelter 5 Metrics'!$G$4","v":0},null,null,{"$f":"'Shelter 6 Metrics'!$G$24","v":"Select One"},null,{"$f":"'Shelter 6 Metrics'!$G$28","v":"Select One"},null,{"$f":"'Shelter 6 Metrics'!$A$23","v":0},null,{"$f":"'Shelter 6 Metrics'!$A$27","v":0},null,{"$f":"'Shelter 6 Metrics'!$A$31","v":0},null,{"$f":"'Shelter 6 Metrics'!$A$33","v":0},{"$f":"'Shelter 6 Metrics'!$A$35","v":0},{"$f":"'Shelter 6 Metrics'!$A$37","v":0},null,null,{"$f":"COUNTA('Shelter 6 Metrics'!$A$41:$C$50)","v":0},{"$f":"SUM('Shelter 6 Metrics'!$F$41:$F$50)","v":0},{"$f":"'Shelter 6 Metrics'!$E$15","v":0},null,null,{"$f":"'Shelter 6 Metrics'!$E$16","v":0}]
[{"$f":"'Shelter 5 Metrics'!$G$4","v":0},null,null,{"$f":"'Shelter 7 Metrics'!$G$24","v":"Select One"},null,{"$f":"'Shelter 7 Metrics'!$G$28","v":"Select One"},null,{"$f":"'Shelter 7 Metrics'!$A$23","v":0},null,{"$f":"'Shelter 7 Metrics'!$A$27","v":0},null,{"$f":"'Shelter 7 Metrics'!$A$31","v":0},null,{"$f":"'Shelter 7 Metrics'!$A$33","v":0},{"$f":"'Shelter 7 Metrics'!$A$35","v":0},{"$f":"'Shelter 7 Metrics'!$A$37","v":0},null,null,{"$f":"COUNTA('Shelter 7 Metrics'!$A$41:$C$50)","v":0},{"$f":"SUM('Shelter 7 Metrics'!$F$41:$F$50)","v":0},{"$f":"'Shelter 7 Metrics'!$E$15","v":0},null,null,{"$f":"'Shelter 7 Metrics'!$E$16","v":0}]
[{"$f":"'Shelter 5 Metrics'!$G$4","v":0},null,null,{"$f":"'Shelter 8 Metrics'!$G$24","v":"Select One"},null,{"$f":"'Shelter 8 Metrics'!$G$28","v":"Select One"},null,{"$f":"'Shelter 8 Metrics'!$A$23","v":0},null,{"$f":"'Shelter 8 Metrics'!$A$27","v":0},null,{"$f":"'Shelter 8 Metrics'!$A$31","v":0},null,{"$f":"'Shelter 8 Metrics'!$A$33","v":0},{"$f":"'Shelter 8 Metrics'!$A$35","v":0},{"$f":"'Shelter 8 Metrics'!$A$37","v":0},null,null,{"$f":"COUNTA('Shelter 8 Metrics'!$A$41:$C$50)","v":0},{"$f":"SUM('Shelter 8 Metrics'!$F$41:$F$50)","v":0},{"$f":"'Shelter 8 Metrics'!$E$15","v":0},null,null,{"$f":"'Shelter 8 Metrics'!$E$16","v":0}]
[{"$f":"'Shelter 5 Metrics'!$G$4","v":0},null,null,{"$f":"'Shelter 9 Metrics'!$G$24","v":"Select One"},null,{"$f":"'Shelter 9 Metrics'!$G$28","v":"Select One"},null,{"$f":"'Shelter 9 Metrics'!$A$23","v":0},null,{"$f":"'Shelter 9 Metrics'!$A$27","v":0},null,{"$f":"'Shelter 9 Metrics'!$A$31","v":0},null,{"$f":"'Shelter 9 Metrics'!$A$33","v":0},{"$f":"'Shelter 9 Metrics'!$A$35","v":0},{"$f":"'Shelter 9 Metrics'!$A$37","v":0},null,null,{"$f":"COUNTA('Shelter 9 Metrics'!$A$41:$C$50)","v":0},{"$f":"SUM('Shelter 9 Metrics'!$F$41:$F$50)","v":0},{"$f":"'Shelter 9 Metrics'!$E$15","v":0},null,null,{"$f":"'Shelter 9 Metrics'!$E$16","v":0}]
[{"$f":"'Shelter 5 Metrics'!$G$4","v":0},null,null,{"$f":"'Shelter 10 Metrics'!$G$24","v":"Select One"},null,{"$f":"'Shelter 10 Metrics'!$G$28","v":"Select One"},null,{"$f":"'Shelter 10 Metrics'!$A$23","v":0},null,{"$f":"'Shelter 10 Metrics'!$A$27","v":0},null,{"$f":"'Shelter 10 Metrics'!$A$31","v":0},null,{"$f":"'Shelter 10 Metrics'!$A$33","v":0},{"$f":"'Shelter 10 Metrics'!$A$35","v":0},{"$f":"'Shelter 10 Metrics'!$A$37","v":0},null,null,{"$f":"COUNTA('Shelter 10 Metrics'!$A$41:$C$50)","v":0},{"$f":"SUM('Shelter 10 Metrics'!$F$41:$F$50)","v":0},{"$f":"'Shelter 10 Metrics'!$E$15","v":0},null,null,{"$f":"'Shelter 10 Metrics'!$E$16","v":0}]
[{"$f":"'Shelter 5 Metrics'!$G$4","v":0},null,null,{"$f":"'Shelter 11 Metrics'!$G$24","v":"Select One"},null,{"$f":"'Shelter 11 Metrics'!$G$28","v":"Select One"},null,{"$f":"'Shelter 11 Metrics'!$A$23","v":0},null,{"$f":"'Shelter 11 Metrics'!$A$27","v":0},null,{"$f":"'Shelter 11 Metrics'!$A$31","v":0},null,{"$f":"'Shelter 11 Metrics'!$A$33","v":0},{"$f":"'Shelter 11 Metrics'!$A$35","v":0},{"$f":"'Shelter 11 Metrics'!$A$37","v":0},null,null,{"$f":"COUNTA('Shelter 11 Metrics'!$A$41:$C$50)","v":0},{"$f":"SUM('Shelter 11 Metrics'!$F$41:$F$50)","v":0},{"$f":"'Shelter 11 Metrics'!$E$15","v":0},null,null,{"$f":"'Shelter 11 Metrics'!$E$16","v":0}]
[{"$f":"'Shelter 5 Metrics'!$G$4","v":0},null,null,{"$f":"'Shelter 12 Metrics'!$G$24","v":"Select One"},null,{"$f":"'Shelter 12 Metrics'!$G$28","v":"Select One"},null,{"$f":"'Shelter 12 Metrics'!$A$23","v":0},null,{"$f":"'Shelter 12 Metrics'!$A$27","v":0},null,{"$f":"'Shelter 12 Metrics'!$A$31","v":0},null,{"$f":"'Shelter 12 Metrics'!$A$33","v":0},{"$f":"'Shelter 12 Metrics'!$A$35","v":0},{"$f":"'Shelter 12 Metrics'!$A$37","v":0},null,null,{"$f":"COUNTA('Shelter 12 Metrics'!$A$41:$C$50)","v":0},{"$f":"SUM('Shelter 12 Metrics'!$F$41:$F$50)","v":0},{"$f":"'Shelter 12 Metrics'!$E$15","v":0},null,null,{"$f":"'Shelter 12 Metrics'!$E$16","v":0}]

{"sheet":"Contract Data","index":15,"n_rows":2,"n_cols":68,"rows_kept":2,"cut":false,"hidden":true,"merged":[]}
["HCD Contract Number","HCD Reviewing Rep","HCD Reviewing Manager","Contractor Name","Contractor Address","Preparer Name","Preparer Phone","Preparer Email","Reporting Period","# Shelters","PAS People Served (Life of Project)","PAS Pets Served (Life of Project)","Authorized Rep","Total PAS Award","Total PAS Interest","Total PAS Funds (+Interest)","PAS Award Disbursed","Total PAS Expended To Date","PAS Funds Remaining","Total PAS Expended This Reporting Period","Interest this Period","Total PAS Reimbursement","Period PAS Exp Crates and Kennels","Period PAS Exp Pet Food/Supply","Period PAS Exp Veterinarian Services","Period PAS Exp Staff (Pet Asst)","Period PAS Exp Audit","Period PAS Exp Liability Insurance","Period PAS Expenditure","PAS NOI","Total Gen Participants Assisted","Total Gen Shelter Beds Avail.","Gen Av. Length of Stay","Total Exits to Perm Housing","Total Exits to Homelessness","Total Gen Minor Children Asst.","Total Gen TAY Asst.","Total Gen Seniors Asst.","Total Gen Vets Asst.","Total Gen Disabled Asst.","Total Gen LGBTQ Asst.","Total PAS Participants Assisted","Total PAS Pets Assisted","Total Pets Receiving Behavioral Support","Total Pets Receiving Spay/Neuter Services","Total Pets Receiving Vaccination","Total PAS Service/ES Animals Asst.","Total PAS Beds Avail.","PAS Av Length of Stay","Total PAS Exits to Perm Housing","Total PAS Exits to Homelessness","Total PAS Minor Children Asst.","Total PAS TAY Asst.","Total PAS Seniors Asst.","Total PAS Vets Asst.","Total PAS Disabled Asst.","Total PAS LGBTQIA Asst.","#Assisted by Other Outcomes (1)","#Assisted by Other Outcomes (2)","# of Referring Entitites","# of Referrals Made","Cost per PAS Participant Assisted:","Cost per PAS bed: crates and kennels","Cost per PAS bed: Pet Food/Supply","Cost per PAS bed: Vet Services","Cost per PAS bed: PAS Staff","Cost per PAS bed: PAS Audit","Cost per PAS bed: Liability Insurance"]
[{"$f":"Certification!$B$14","v":0},{"$f":"'Rep Worksheet'!D8","v":0},{"$f":"'Rep Worksheet'!D10","v":0},{"$f":"Certification!B15","v":0},{"$f":"Certification!B16","v":0},{"$f":"Certification!B17","v":0},{"$f":"Certification!B18","v":0},{"$f":"Certification!B19","v":0},{"$f":"Certification!B21","v":"Select One"},{"$f":"Certification!B20","v":"Select One"},{"$f":"Certification!B22","v":0},{"$f":"Certification!H22","v":0},{"$f":"Certification!A27","v":0},{"$f":"Certification!H16","v":0},{"$f":"Certification!H17","v":0},{"$f":"Certification!H18","v":0},{"$f":"Certification!H21","v":0},{"$f":"Certification!H19","v":0},{"$f":"Certification!H20","v":0},{"$f":"'Operating Budget'!F18","v":0},{"$f":"'Operating Budget'!F8","v":0},{"$f":"SUM('Operating Budget'!F16:AC16)","v":0},{"$f":"SUM('Operating Budget'!F21:AC21)","v":0},{"$f":"SUM('Operating Budget'!F22:AC22)","v":0},{"$f":"SUM('Operating Budget'!F23:AC23)","v":0},{"$f":"SUM('Operating Budget'!F24:AC24)","v":0},{"$f":"SUM('Operating Budget'!F25:AC25)","v":0},{"$f":"SUM('Operating Budget'!F26:AC26)","v":0},{"$f":"'Operating Budget'!F29","v":0},{"$f":"'Operating Budget'!F17-'Operating Budget'!F27","v":0},{"$f":"SUM('Shelter Data'!R2:R13)","v":0},{"$f":"SUM('Shelter Data'!S2:S13)","v":0},{"$f":"AVERAGE('Shelter Data'!T2:T13)","v":0},{"$f":"SUM('Shelter Data'!U2:U13)","v":0},{"$f":"SUM('Shelter Data'!V2:V13)","v":0},{"$f":"SUM('Shelter Data'!W2:W13)","v":0},{"$f":"SUM('Shelter Data'!X2:X13)","v":0},{"$f":"SUM('Shelter Data'!Y2:Y13)","v":0},{"$f":"SUM('Shelter Data'!Z2:Z13)","v":0},{"$f":"SUM('Shelter Data'!AA2:AA13)","v":0},{"$f":"SUM('Shelter Data'!AB2:AB13)","v":0},{"$f":"SUM('Shelter Data'!AC2:AC13)","v":0},{"$f":"SUM('Shelter Data'!AD2:AD13)","v":0},{"$f":"SUM('Shelter Data'!AE2:AE13)","v":0},{"$f":"SUM('Shelter Data'!AF2:AF13)","v":0},{"$f":"SUM('Shelter Data'!AG2:AG13)","v":0},{"$f":"SUM('Shelter Data'!AH2:AH13)","v":0},{"$f":"SUM('Shelter Data'!AI2:AI13)","v":0},{"$f":"SUM('Shelter Data'!AJ2:AJ13)","v":0},{"$f":"SUM('Shelter Data'!AK2:AK13)","v":0},{"$f":"SUM('Shelter Data'!AL2:AL13)","v":0},{"$f":"SUM('Shelter Data'!AM2:AM13)","v":0},{"$f":"SUM('Shelter Data'!AN2:AN13)","v":0},{"$f":"SUM('Shelter Data'!AO2:AO13)","v":0},{"$f":"SUM('Shelter Data'!AP2:AP13)","v":0},{"$f":"SUM('Shelter Data'!AQ2:AQ13)","v":0},{"$f":"SUM('Shelter Data'!AR2:AR13)","v":0},{"$f":"SUM('Shelter Data'!AV2:AV13)","v":0},{"$f":"SUM('Shelter Data'!AX2:AX13)","v":0},{"$f":"SUM('Shelter Data'!AY2:AY13)","v":0},{"$f":"SUM('Shelter Data'!AZ2:AZ13)","v":0},{"$f":"IFERROR(T2/AP2,0)","v":0},{"$f":"W2/$AV$2","v":{"$error":"#DIV/0!"}},{"$error":"#DIV/0!"},{"$error":"#DIV/0!"},{"$error":"#DIV/0!"},{"$error":"#DIV/0!"},{"$error":"#DIV/0!"}]

{"sheet":"Shelter Data","index":16,"n_rows":13,"n_cols":61,"rows_kept":13,"cut":false,"hidden":true,"merged":[]}
["Contract #","Contractor","Shelter Name","In Operation?","Date Operation Began","PAS Expended","PAS Reimbursed","PAS Revenue","PAS Exp Crates and Kennels","PAS Exp Pet Food/Supply","PAS Exp Veterinarian Services","PAS Exp Staff (Pet Asst)","PAS Exp Audit","PAS Exp Liability Insurance","Total PAS Expenditure","PAS NOI","Operation Status","Gen Participants Assisted","Gen Shelter Beds Avail.","Gen Av. Length of Stay","Gen Exits to Perm Housing","Gen Exits to Homelessness","Gen Minor Children Asst.","Gen TAY Asst.","Gen Seniors Asst.","Gen Vets Asst.","Gen Disabled Asst.","Gen LGBTQ Asst.","PAS Participants Assisted","PAS Pets Assisted","Pets Receiving Behavioral Support","Pets Receiving Spay/Neuter Services","Pets Receiving Vaccination","PAS Service/ES Animals Asst.","PAS Beds Avail.","PAS Av. Length of Stay","PAS Exits to Perm Housing","PAS Exits to Homelessness","PAS Minor Children Asst.","PAS TAY Asst.","PAS Seniors Asst.","PAS Vets Asst.","PAS Disabled Asst.","PAS LGBTQIA Asst.","Narrative:Residential Stability","Narrative: Income Job Experience","Other Outcome 1","# Participants Achieving Outcome 1","Other Outcome 2","# Participants Achieving Outcome 2","# of Referring Entitites","# of Referrals Made","Cost per PAS Participant Assisted:","Survey Frequency","Satisfaction Survey Attached?","Exit Survey Reasons","Exit Survey Attached?","How Responses are Reviewed","Evaluation Tracking and Analysis","Who is Analyzing","Evaluation Outcomes"]
[{"$f":"Certification!$B$14","v":0},{"$f":"Certification!$B$15","v":0},{"$f":"'Operating Budget'!F10","v":0},{"$f":"'Operating Budget'!F11","v":"Select One"},{"$f":"'Operating Budget'!F12","v":"00:00:00"},{"$f":"'Operating Budget'!$F15","v":0},{"$f":"'Operating Budget'!F$16","v":0},{"$f":"'Operating Budget'!F17","v":0},{"$f":"'Operating Budget'!F21","v":0},{"$f":"'Operating Budget'!F22","v":0},{"$f":"'Operating Budget'!F23","v":0},{"$f":"'Operating Budget'!F24","v":0},{"$f":"'Operating Budget'!F25","v":0},{"$f":"'Operating Budget'!F26","v":0},{"$f":"'Operating Budget'!F27","v":0},{"$f":"'Operating Budget'!F28","v":0},{"$f":"'Operating Budget'!F31","v":"Select One"},{"$f":"'Shelter 1 Metrics'!$B$12","v":0},{"$f":"'Shelter 1 Metrics'!$C$12","v":0},{"$f":"'Shelter 1 Metrics'!D$12","v":0},{"$f":"'Shelter 1 Metrics'!E$12","v":0},{"$f":"'Shelter 1 Metrics'!F$12","v":0},{"$f":"'Shelter 1 Metrics'!G$12","v":0},{"$f":"'Shelter 1 Metrics'!H$12","v":0},{"$f":"'Shelter 1 Metrics'!I$12","v":0},{"$f":"'Shelter 1 Metrics'!J$12","v":0},{"$f":"'Shelter 1 Metrics'!K$12","v":0},{"$f":"'Shelter 1 Metrics'!L$12","v":0},{"$f":"'Shelter 1 Metrics'!B$11","v":0},{"$f":"'Shelter 1 Metrics'!B$8","v":0},{"$f":"'Shelter 1 Metrics'!D$8","v":0},{"$f":"'Shelter 1 Metrics'!F$8","v":0},{"$f":"'Shelter 1 Metrics'!I$8","v":0},{"$f":"'Shelter 1 Metrics'!L$8","v":0},{"$f":"'Shelter 1 Metrics'!C$11","v":0},{"$f":"'Shelter 1 Metrics'!D$11","v":0},{"$f":"'Shelter 1 Metrics'!E$11","v":0},{"$f":"'Shelter 1 Metrics'!F$11","v":0},{"$f":"'Shelter 1 Metrics'!G$11","v":0},{"$f":"'Shelter 1 Metrics'!H$11","v":0},{"$f":"'Shelter 1 Metrics'!I$11","v":0},{"$f":"'Shelter 1 Metrics'!J$11","v":0},{"$f":"'Shelter 1 Metrics'!K$11","v":0},{"$f":"'Shelter 1 Metrics'!L$11","v":0},{"$f":"'Shelter 1 Metrics'!E$15","v":0},{"$f":"'Shelter 1 Metrics'!E$16","v":0},{"$f":"'Shelter 1 Metrics'!E$19","v":0},{"$f":"'Shelter 1 Metrics'!K$19","v":0},{"$f":"'Shelter 1 Metrics'!E$20","v":0},{"$f":"'Shelter 1 Metrics'!K$20","v":0},{"$f":"COUNTA('Shelter 1 Metrics'!$A$41:$C$50)","v":0},{"$f":"SUM('Shelter 1 Metrics'!$F$41:$F$50)","v":0},{"$f":"IFERROR(O2/AC2,0)","v":0},{"$f":"'Shelter 1 Metrics'!A23","v":0},{"$f":"'Shelter 1 Metrics'!$G$24","v":"Select One"},{"$f":"'Shelter 1 Metrics'!$A$27","v":0},{"$f":"'Shelter 1 Metrics'!$G$28","v":"Select One"},{"$f":"'Shelter 1 Metrics'!$A$31","v":0},{"$f":"'Shelter 1 Metrics'!$A$33","v":0},{"$f":"'Shelter 1 Metrics'!$A$35","v":0},{"$f":"'Shelter 1 Metrics'!$A$37","v":0}]
[{"$f":"Certification!$B$14","v":0},{"$f":"Certification!$B$15","v":0},{"$f":"'Operating Budget'!H10","v":0},{"$f":"'Operating Budget'!H11","v":"Select One"},{"$f":"'Operating Budget'!H12","v":"00:00:00"},{"$f":"'Operating Budget'!$H15","v":0},{"$f":"'Operating Budget'!H$16","v":0},{"$f":"'Operating Budget'!H17","v":0},{"$f":"'Operating Budget'!H21","v":0},{"$f":"'Operating Budget'!H22","v":0},{"$f":"'Operating Budget'!H23","v":0},{"$f":"'Operating Budget'!H24","v":0},{"$f":"'Operating Budget'!H25","v":0},{"$f":"'Operating Budget'!H26","v":0},{"$f":"'Operating Budget'!H27","v":0},{"$f":"'Operating Budget'!H28","v":0},{"$f":"'Operating Budget'!H31","v":"Select One"},{"$f":"'Shelter 2 Metrics'!$B$12","v":0},{"$f":"'Shelter 2 Metrics'!$C$12","v":0},{"$f":"'Shelter 2 Metrics'!D$12","v":0},{"$f":"'Shelter 2 Metrics'!E$12","v":0},{"$f":"'Shelter 2 Metrics'!F$12","v":0},{"$f":"'Shelter 2 Metrics'!G$12","v":0},{"$f":"'Shelter 2 Metrics'!H$12","v":0},{"$f":"'Shelter 2 Metrics'!I$12","v":0},{"$f":"'Shelter 2 Metrics'!J$12","v":0},{"$f":"'Shelter 2 Metrics'!K$12","v":0},{"$f":"'Shelter 2 Metrics'!L$12","v":0},{"$f":"'Shelter 2 Metrics'!B$11","v":0},{"$f":"'Shelter 2 Metrics'!B$8","v":0},{"$f":"'Shelter 2 Metrics'!D$8","v":0},{"$f":"'Shelter 2 Metrics'!F$8","v":0},{"$f":"'Shelter 2 Metrics'!I$8","v":0},{"$f":"'Shelter 2 Metrics'!L$8","v":0},{"$f":"'Shelter 2 Metrics'!C$11","v":0},{"$f":"'Shelter 2 Metrics'!D$11","v":0},{"$f":"'Shelter 2 Metrics'!E$11","v":0},{"$f":"'Shelter 2 Metrics'!F$11","v":0},{"$f":"'Shelter 2 Metrics'!G$11","v":0},{"$f":"'Shelter 2 Metrics'!H$11","v":0},{"$f":"'Shelter 2 Metrics'!I$11","v":0},{"$f":"'Shelter 2 Metrics'!J$11","v":0},{"$f":"'Shelter 2 Metrics'!K$11","v":0},{"$f":"'Shelter 2 Metrics'!L$11","v":0},{"$f":"'Shelter 2 Metrics'!E$15","v":0},{"$f":"'Shelter 2 Metrics'!E$16","v":0},{"$f":"'Shelter 2 Metrics'!E19","v":0},{"$f":"'Shelter 2 Metrics'!K19","v":0},{"$f":"'Shelter 2 Metrics'!E$20","v":0},{"$f":"'Shelter 2 Metrics'!K$20","v":0},{"$f":"COUNTA('Shelter 2 Metrics'!$A$41:$C$50)","v":0},{"$f":"SUM('Shelter 2 Metrics'!$F$41:$F$50)","v":0},0,{"$f":"'Shelter 2 Metrics'!A23","v":0},{"$f":"'Shelter 2 Metrics'!$G$24","v":"Select One"},{"$f":"'Shelter 2 Metrics'!$A$27","v":0},{"$f":"'Shelter 2 Metrics'!$G$28","v":"Select One"},{"$f":"'Shelter 2 Metrics'!$A$31","v":0},{"$f":"'Shelter 2 Metrics'!$A$33","v":0},{"$f":"'Shelter 2 Metrics'!$A$35","v":0},{"$f":"'Shelter 2 Metrics'!$A$37","v":0}]
[{"$f":"Certification!$B$14","v":0},{"$f":"Certification!$B$15","v":0},{"$f":"'Operating Budget'!J10","v":0},{"$f":"'Operating Budget'!J11","v":"Select One"},{"$f":"'Operating Budget'!J12","v":"00:00:00"},{"$f":"'Operating Budget'!J15","v":0},{"$f":"'Operating Budget'!J$16","v":0},{"$f":"'Operating Budget'!J17","v":0},{"$f":"'Operating Budget'!J21","v":0},{"$f":"'Operating Budget'!J22","v":0},{"$f":"'Operating Budget'!J23","v":0},{"$f":"'Operating Budget'!J24","v":0},{"$f":"'Operating Budget'!J25","v":0},{"$f":"'Operating Budget'!J26","v":0},{"$f":"'Operating Budget'!J27","v":0},{"$f":"'Operating Budget'!J28","v":0},{"$f":"'Operating Budget'!J31","v":"Select One"},{"$f":"'Shelter 3 Metrics'!$B$12","v":0},{"$f":"'Shelter 3 Metrics'!$C$12","v":0},{"$f":"'Shelter 3 Metrics'!D$12","v":0},{"$f":"'Shelter 3 Metrics'!E$12","v":0},{"$f":"'Shelter 3 Metrics'!F$12","v":0},{"$f":"'Shelter 3 Metrics'!G$12","v":0},{"$f":"'Shelter 3 Metrics'!H$12","v":0},{"$f":"'Shelter 3 Metrics'!I$12","v":0},{"$f":"'Shelter 3 Metrics'!J$12","v":0},{"$f":"'Shelter 3 Metrics'!K$12","v":0},{"$f":"'Shelter 3 Metrics'!L$12","v":0},{"$f":"'Shelter 3 Metrics'!B$11","v":0},{"$f":"'Shelter 3 Metrics'!B$8","v":0},{"$f":"'Shelter 3 Metrics'!D$8","v":0},{"$f":"'Shelter 3 Metrics'!F$8","v":0},{"$f":"'Shelter 3 Metrics'!I$8","v":0},{"$f":"'Shelter 3 Metrics'!L$8","v":0},{"$f":"'Shelter 3 Metrics'!C$11","v":0},{"$f":"'Shelter 3 Metrics'!D$11","v":0},{"$f":"'Shelter 3 Metrics'!E$11","v":0},{"$f":"'Shelter 3 Metrics'!F$11","v":0},{"$f":"'Shelter 3 Metrics'!G$11","v":0},{"$f":"'Shelter 3 Metrics'!H$11","v":0},{"$f":"'Shelter 3 Metrics'!I$11","v":0},{"$f":"'Shelter 3 Metrics'!J$11","v":0},{"$f":"'Shelter 3 Metrics'!K$11","v":0},{"$f":"'Shelter 3 Metrics'!L$11","v":0},{"$f":"'Shelter 3 Metrics'!E$15","v":0},{"$f":"'Shelter 3 Metrics'!E$16","v":0},{"$f":"'Shelter 3 Metrics'!E19","v":0},{"$f":"'Shelter 3 Metrics'!K19","v":0},{"$f":"'Shelter 3 Metrics'!E$20","v":0},{"$f":"'Shelter 3 Metrics'!K$20","v":0},{"$f":"COUNTA('Shelter 3 Metrics'!$A$41:$C$50)","v":0},{"$f":"SUM('Shelter 3 Metrics'!$F$41:$F$50)","v":0},0,{"$f":"'Shelter 3 Metrics'!A23","v":0},{"$f":"'Shelter 3 Metrics'!$G$24","v":"Select One"},{"$f":"'Shelter 3 Metrics'!$A$27","v":0},{"$f":"'Shelter 3 Metrics'!$G$28","v":"Select One"},{"$f":"'Shelter 3 Metrics'!$A$31","v":0},{"$f":"'Shelter 3 Metrics'!$A$33","v":0},{"$f":"'Shelter 3 Metrics'!$A$35","v":0},{"$f":"'Shelter 3 Metrics'!$A$37","v":0}]
[{"$f":"Certification!$B$14","v":0},{"$f":"Certification!$B$15","v":0},{"$f":"'Operating Budget'!L10","v":0},{"$f":"'Operating Budget'!L11","v":"Select One"},{"$f":"'Operating Budget'!L12","v":"00:00:00"},{"$f":"'Operating Budget'!L15","v":0},{"$f":"'Operating Budget'!L$16","v":0},{"$f":"'Operating Budget'!L17","v":0},{"$f":"'Operating Budget'!L21","v":0},{"$f":"'Operating Budget'!L22","v":0},{"$f":"'Operating Budget'!L23","v":0},{"$f":"'Operating Budget'!L24","v":0},{"$f":"'Operating Budget'!L25","v":0},{"$f":"'Operating Budget'!L26","v":0},{"$f":"'Operating Budget'!L27","v":0},{"$f":"'Operating Budget'!L28","v":0},{"$f":"'Operating Budget'!L31","v":"Select One"},{"$f":"'Shelter 4 Metrics'!$B$12","v":0},{"$f":"'Shelter 4 Metrics'!$C$12","v":0},{"$f":"'Shelter 4 Metrics'!D$12","v":0},{"$f":"'Shelter 4 Metrics'!E$12","v":0},{"$f":"'Shelter 4 Metrics'!F$12","v":0},{"$f":"'Shelter 4 Metrics'!G$12","v":0},{"$f":"'Shelter 4 Metrics'!H$12","v":0},{"$f":"'Shelter 4 Metrics'!I$12","v":0},{"$f":"'Shelter 4 Metrics'!J$12","v":0},{"$f":"'Shelter 4 Metrics'!K$12","v":0},{"$f":"'Shelter 4 Metrics'!L$12","v":0},{"$f":"'Shelter 4 Metrics'!B$11","v":0},{"$f":"'Shelter 4 Metrics'!B$8","v":0},{"$f":"'Shelter 4 Metrics'!D$8","v":0},{"$f":"'Shelter 4 Metrics'!F$8","v":0},{"$f":"'Shelter 4 Metrics'!I$8","v":0},{"$f":"'Shelter 4 Metrics'!L$8","v":0},{"$f":"'Shelter 4 Metrics'!C$11","v":0},{"$f":"'Shelter 4 Metrics'!D$11","v":0},{"$f":"'Shelter 4 Metrics'!E$11","v":0},{"$f":"'Shelter 4 Metrics'!F$11","v":0},{"$f":"'Shelter 4 Metrics'!G$11","v":0},{"$f":"'Shelter 4 Metrics'!H$11","v":0},{"$f":"'Shelter 4 Metrics'!I$11","v":0},{"$f":"'Shelter 4 Metrics'!J$11","v":0},{"$f":"'Shelter 4 Metrics'!K$11","v":0},{"$f":"'Shelter 4 Metrics'!L$11","v":0},{"$f":"'Shelter 4 Metrics'!E$15","v":0},{"$f":"'Shelter 4 Metrics'!E$16","v":0},{"$f":"'Shelter 4 Metrics'!E19","v":0},{"$f":"'Shelter 4 Metrics'!K19","v":0},{"$f":"'Shelter 4 Metrics'!E$20","v":0},{"$f":"'Shelter 4 Metrics'!K$20","v":0},{"$f":"COUNTA('Shelter 4 Metrics'!$A$41:$C$50)","v":0},{"$f":"SUM('Shelter 4 Metrics'!$F$41:$F$50)","v":0},0,{"$f":"'Shelter 4 Metrics'!A23","v":0},{"$f":"'Shelter 4 Metrics'!$G$24","v":"Select One"},{"$f":"'Shelter 4 Metrics'!$A$27","v":0},{"$f":"'Shelter 4 Metrics'!$G$28","v":"Select One"},{"$f":"'Shelter 4 Metrics'!$A$31","v":0},{"$f":"'Shelter 4 Metrics'!$A$33","v":0},{"$f":"'Shelter 4 Metrics'!$A$35","v":0},{"$f":"'Shelter 4 Metrics'!$A$37","v":0}]
[{"$f":"Certification!$B$14","v":0},{"$f":"Certification!$B$15","v":0},{"$f":"'Operating Budget'!N10","v":0},{"$f":"'Operating Budget'!N11","v":"Select One"},{"$f":"'Operating Budget'!N12","v":"00:00:00"},{"$f":"'Operating Budget'!N15","v":0},{"$f":"'Operating Budget'!N$16","v":0},{"$f":"'Operating Budget'!N17","v":0},{"$f":"'Operating Budget'!N21","v":0},{"$f":"'Operating Budget'!N22","v":0},{"$f":"'Operating Budget'!N23","v":0},{"$f":"'Operating Budget'!N24","v":0},{"$f":"'Operating Budget'!N25","v":0},{"$f":"'Operating Budget'!N26","v":0},{"$f":"'Operating Budget'!N27","v":0},{"$f":"'Operating Budget'!N28","v":0},{"$f":"'Operating Budget'!N31","v":"Select One"},{"$f":"'Shelter 5 Metrics'!$B$12","v":0},{"$f":"'Shelter 5 Metrics'!$C$12","v":0},{"$f":"'Shelter 5 Metrics'!D$12","v":0},{"$f":"'Shelter 5 Metrics'!E$12","v":0},{"$f":"'Shelter 5 Metrics'!F$12","v":0},{"$f":"'Shelter 5 Metrics'!G$12","v":0},{"$f":"'Shelter 5 Metrics'!H$12","v":0},{"$f":"'Shelter 5 Metrics'!I$12","v":0},{"$f":"'Shelter 5 Metrics'!J$12","v":0},{"$f":"'Shelter 5 Metrics'!K$12","v":0},{"$f":"'Shelter 5 Metrics'!L$12","v":0},{"$f":"'Shelter 5 Metrics'!B$11","v":0},{"$f":"'Shelter 5 Metrics'!B$8","v":0},{"$f":"'Shelter 5 Metrics'!D$8","v":0},{"$f":"'Shelter 5 Metrics'!F$8","v":0},{"$f":"'Shelter 5 Metrics'!I$8","v":0},{"$f":"'Shelter 5 Metrics'!L$8","v":0},{"$f":"'Shelter 5 Metrics'!C$11","v":0},{"$f":"'Shelter 5 Metrics'!D$11","v":0},{"$f":"'Shelter 5 Metrics'!E$11","v":0},{"$f":"'Shelter 5 Metrics'!F$11","v":0},{"$f":"'Shelter 5 Metrics'!G$11","v":0},{"$f":"'Shelter 5 Metrics'!H$11","v":0},{"$f":"'Shelter 5 Metrics'!I$11","v":0},{"$f":"'Shelter 5 Metrics'!J$11","v":0},{"$f":"'Shelter 5 Metrics'!K$11","v":0},{"$f":"'Shelter 5 Metrics'!L$11","v":0},{"$f":"'Shelter 5 Metrics'!E$15","v":0},{"$f":"'Shelter 5 Metrics'!E$16","v":0},{"$f":"'Shelter 5 Metrics'!E$19","v":0},{"$f":"'Shelter 5 Metrics'!K$19","v":0},{"$f":"'Shelter 5 Metrics'!E$20","v":0},{"$f":"'Shelter 5 Metrics'!K$20","v":0},{"$f":"COUNTA('Shelter 5 Metrics'!$A$41:$C$50)","v":0},{"$f":"SUM('Shelter 5 Metrics'!$F$41:$F$50)","v":0},0,{"$f":"'Shelter 5 Metrics'!A23","v":0},{"$f":"'Shelter 5 Metrics'!$G$24","v":"Select One"},{"$f":"'Shelter 5 Metrics'!$A$27","v":0},{"$f":"'Shelter 5 Metrics'!$G$28","v":"Select One"},{"$f":"'Shelter 5 Metrics'!$A$31","v":0},{"$f":"'Shelter 5 Metrics'!$A$33","v":0},{"$f":"'Shelter 5 Metrics'!$A$35","v":0},{"$f":"'Shelter 5 Metrics'!$A$37","v":0}]
[{"$f":"Certification!$B$14","v":0},{"$f":"Certification!$B$15","v":0},{"$f":"'Operating Budget'!P10","v":0},{"$f":"'Operating Budget'!P11","v":"Select One"},{"$f":"'Operating Budget'!P12","v":"00:00:00"},{"$f":"'Operating Budget'!P15","v":0},{"$f":"'Operating Budget'!P$16","v":0},{"$f":"'Operating Budget'!P17","v":0},{"$f":"'Operating Budget'!P21","v":0},{"$f":"'Operating Budget'!P22","v":0},{"$f":"'Operating Budget'!P23","v":0},{"$f":"'Operating Budget'!P24","v":0},{"$f":"'Operating Budget'!P25","v":0},{"$f":"'Operating Budget'!P26","v":0},{"$f":"'Operating Budget'!P27","v":0},{"$f":"'Operating Budget'!P28","v":0},{"$f":"'Operating Budget'!P31","v":"Select One"},{"$f":"'Shelter 6 Metrics'!$B$12","v":0},{"$f":"'Shelter 6 Metrics'!$C$12","v":0},{"$f":"'Shelter 6 Metrics'!D$12","v":0},{"$f":"'Shelter 6 Metrics'!E$12","v":0},{"$f":"'Shelter 6 Metrics'!F$12","v":0},{"$f":"'Shelter 6 Metrics'!G$12","v":0},{"$f":"'Shelter 6 Metrics'!H$12","v":0},{"$f":"'Shelter 6 Metrics'!I$12","v":0},{"$f":"'Shelter 6 Metrics'!J$12","v":0},{"$f":"'Shelter 6 Metrics'!K$12","v":0},{"$f":"'Shelter 6 Metrics'!L$12","v":0},{"$f":"'Shelter 6 Metrics'!B$11","v":0},{"$f":"'Shelter 6 Metrics'!B$8","v":0},{"$f":"'Shelter 6 Metrics'!D$8","v":0},{"$f":"'Shelter 6 Metrics'!F$8","v":0},{"$f":"'Shelter 6 Metrics'!I$8","v":0},{"$f":"'Shelter 6 Metrics'!L$8","v":0},{"$f":"'Shelter 6 Metrics'!C$11","v":0},{"$f":"'Shelter 6 Metrics'!D$11","v":0},{"$f":"'Shelter 6 Metrics'!E$11","v":0},{"$f":"'Shelter 6 Metrics'!F$11","v":0},{"$f":"'Shelter 6 Metrics'!G$11","v":0},{"$f":"'Shelter 6 Metrics'!H$11","v":0},{"$f":"'Shelter 6 Metrics'!I$11","v":0},{"$f":"'Shelter 6 Metrics'!J$11","v":0},{"$f":"'Shelter 6 Metrics'!K$11","v":0},{"$f":"'Shelter 6 Metrics'!L$11","v":0},{"$f":"'Shelter 6 Metrics'!E$15","v":0},{"$f":"'Shelter 6 Metrics'!E$16","v":0},{"$f":"'Shelter 6 Metrics'!E$19","v":0},{"$f":"'Shelter 6 Metrics'!K$19","v":0},{"$f":"'Shelter 6 Metrics'!E$20","v":0},{"$f":"'Shelter 6 Metrics'!K$20","v":0},{"$f":"COUNTA('Shelter 6 Metrics'!$A$41:$C$50)","v":0},{"$f":"SUM('Shelter 6 Metrics'!$F$41:$F$50)","v":0},0,{"$f":"'Shelter 6 Metrics'!A23","v":0},{"$f":"'Shelter 6 Metrics'!$G$24","v":"Select One"},{"$f":"'Shelter 6 Metrics'!$A$27","v":0},{"$f":"'Shelter 6 Metrics'!$G$28","v":"Select One"},{"$f":"'Shelter 6 Metrics'!$A$31","v":0},{"$f":"'Shelter 6 Metrics'!$A$33","v":0},{"$f":"'Shelter 6 Metrics'!$A$35","v":0},{"$f":"'Shelter 6 Metrics'!$A$37","v":0}]
[{"$f":"Certification!$B$14","v":0},{"$f":"Certification!$B$15","v":0},{"$f":"'Operating Budget'!R10","v":0},{"$f":"'Operating Budget'!R11","v":"Select One"},{"$f":"'Operating Budget'!R12","v":"00:00:00"},{"$f":"'Operating Budget'!P16","v":0},{"$f":"'Operating Budget'!R$16","v":0},{"$f":"'Operating Budget'!R17","v":0},{"$f":"'Operating Budget'!R21","v":0},{"$f":"'Operating Budget'!R22","v":0},{"$f":"'Operating Budget'!R23","v":0},{"$f":"'Operating Budget'!R24","v":0},{"$f":"'Operating Budget'!R25","v":0},{"$f":"'Operating Budget'!R26","v":0},{"$f":"'Operating Budget'!R27","v":0},{"$f":"'Operating Budget'!R28","v":0},{"$f":"'Operating Budget'!R31","v":"Select One"},{"$f":"'Shelter 7 Metrics'!$B$12","v":0},{"$f":"'Shelter 7 Metrics'!$C$12","v":0},{"$f":"'Shelter 7 Metrics'!D$12","v":0},{"$f":"'Shelter 7 Metrics'!E$12","v":0},{"$f":"'Shelter 7 Metrics'!F$12","v":0},{"$f":"'Shelter 7 Metrics'!G$12","v":0},{"$f":"'Shelter 7 Metrics'!H$12","v":0},{"$f":"'Shelter 7 Metrics'!I$12","v":0},{"$f":"'Shelter 7 Metrics'!J$12","v":0},{"$f":"'Shelter 7 Metrics'!K$12","v":0},{"$f":"'Shelter 7 Metrics'!L$12","v":0},{"$f":"'Shelter 7 Metrics'!B$11","v":0},{"$f":"'Shelter 7 Metrics'!B$8","v":0},{"$f":"'Shelter 7 Metrics'!D$8","v":0},{"$f":"'Shelter 7 Metrics'!F$8","v":0},{"$f":"'Shelter 7 Metrics'!I$8","v":0},{"$f":"'Shelter 7 Metrics'!L$8","v":0},{"$f":"'Shelter 7 Metrics'!C$11","v":0},{"$f":"'Shelter 7 Metrics'!D$11","v":0},{"$f":"'Shelter 7 Metrics'!E$11","v":0},{"$f":"'Shelter 7 Metrics'!F$11","v":0},{"$f":"'Shelter 7 Metrics'!G$11","v":0},{"$f":"'Shelter 7 Metrics'!H$11","v":0},{"$f":"'Shelter 7 Metrics'!I$11","v":0},{"$f":"'Shelter 7 Metrics'!J$11","v":0},{"$f":"'Shelter 7 Metrics'!K$11","v":0},{"$f":"'Shelter 7 Metrics'!L$11","v":0},{"$f":"'Shelter 7 Metrics'!E$15","v":0},{"$f":"'Shelter 7 Metrics'!E$16","v":0},{"$f":"'Shelter 7 Metrics'!E$19","v":0},{"$f":"'Shelter 7 Metrics'!K$19","v":0},{"$f":"'Shelter 7 Metrics'!E$20","v":0},{"$f":"'Shelter 7 Metrics'!K$20","v":0},{"$f":"COUNTA('Shelter 7 Metrics'!$A$41:$C$50)","v":0},{"$f":"SUM('Shelter 7 Metrics'!$F$41:$F$50)","v":0},0,{"$f":"'Shelter 7 Metrics'!A23","v":0},{"$f":"'Shelter 7 Metrics'!$G$24","v":"Select One"},{"$f":"'Shelter 7 Metrics'!$A$27","v":0},{"$f":"'Shelter 7 Metrics'!$G$28","v":"Select One"},{"$f":"'Shelter 7 Metrics'!$A$31","v":0},{"$f":"'Shelter 7 Metrics'!$A$33","v":0},{"$f":"'Shelter 7 Metrics'!$A$35","v":0},{"$f":"'Shelter 7 Metrics'!$A$37","v":0}]
[{"$f":"Certification!$B$14","v":0},{"$f":"Certification!$B$15","v":0},{"$f":"'Operating Budget'!T10","v":0},{"$f":"'Operating Budget'!T11","v":"Select One"},{"$f":"'Operating Budget'!T12","v":"00:00:00"},{"$f":"'Operating Budget'!T15","v":0},{"$f":"'Operating Budget'!T$16","v":0},{"$f":"'Operating Budget'!T17","v":0},{"$f":"'Operating Budget'!T21","v":0},{"$f":"'Operating Budget'!T22","v":0},{"$f":"'Operating Budget'!T23","v":0},{"$f":"'Operating Budget'!T24","v":0},{"$f":"'Operating Budget'!T25","v":0},{"$f":"'Operating Budget'!T26","v":0},{"$f":"'Operating Budget'!T27","v":0},{"$f":"'Operating Budget'!T28","v":0},{"$f":"'Operating Budget'!T31","v":"Select One"},{"$f":"'Shelter 8 Metrics'!$B$12","v":0},{"$f":"'Shelter 8 Metrics'!$C$12","v":0},{"$f":"'Shelter 8 Metrics'!D$12","v":0},{"$f":"'Shelter 8 Metrics'!E$12","v":0},{"$f":"'Shelter 8 Metrics'!F$12","v":0},{"$f":"'Shelter 8 Metrics'!G$12","v":0},{"$f":"'Shelter 8 Metrics'!H$12","v":0},{"$f":"'Shelter 8 Metrics'!I$12","v":0},{"$f":"'Shelter 8 Metrics'!J$12","v":0},{"$f":"'Shelter 8 Metrics'!K$12","v":0},{"$f":"'Shelter 8 Metrics'!L$12","v":0},{"$f":"'Shelter 8 Metrics'!B$11","v":0},{"$f":"'Shelter 8 Metrics'!B$8","v":0},{"$f":"'Shelter 8 Metrics'!D$8","v":0},{"$f":"'Shelter 8 Metrics'!F$8","v":0},{"$f":"'Shelter 8 Metrics'!I$8","v":0},{"$f":"'Shelter 8 Metrics'!L$8","v":0},{"$f":"'Shelter 8 Metrics'!C$11","v":0},{"$f":"'Shelter 8 Metrics'!D$11","v":0},{"$f":"'Shelter 8 Metrics'!E$11","v":0},{"$f":"'Shelter 8 Metrics'!F$11","v":0},{"$f":"'Shelter 8 Metrics'!G$11","v":0},{"$f":"'Shelter 8 Metrics'!H$11","v":0},{"$f":"'Shelter 8 Metrics'!I$11","v":0},{"$f":"'Shelter 8 Metrics'!J$11","v":0},{"$f":"'Shelter 8 Metrics'!K$11","v":0},{"$f":"'Shelter 8 Metrics'!L$11","v":0},{"$f":"'Shelter 8 Metrics'!E$15","v":0},{"$f":"'Shelter 8 Metrics'!E$16","v":0},{"$f":"'Shelter 8 Metrics'!E$19","v":0},{"$f":"'Shelter 8 Metrics'!K$19","v":0},{"$f":"'Shelter 8 Metrics'!E$20","v":0},{"$f":"'Shelter 8 Metrics'!K$20","v":0},{"$f":"COUNTA('Shelter 8 Metrics'!$A$41:$C$50)","v":0},{"$f":"SUM('Shelter 8 Metrics'!$F$41:$F$50)","v":0},0,{"$f":"'Shelter 8 Metrics'!A23","v":0},{"$f":"'Shelter 8 Metrics'!$G$24","v":"Select One"},{"$f":"'Shelter 8 Metrics'!$A$27","v":0},{"$f":"'Shelter 8 Metrics'!$G$28","v":"Select One"},{"$f":"'Shelter 8 Metrics'!$A$31","v":0},{"$f":"'Shelter 8 Metrics'!$A$33","v":0},{"$f":"'Shelter 8 Metrics'!$A$35","v":0},{"$f":"'Shelter 8 Metrics'!$A$37","v":0}]
[{"$f":"Certification!$B$14","v":0},{"$f":"Certification!$B$15","v":0},{"$f":"'Operating Budget'!V10","v":0},{"$f":"'Operating Budget'!V11","v":"Select One"},{"$f":"'Operating Budget'!V12","v":"00:00:00"},{"$f":"'Operating Budget'!V15","v":0},{"$f":"'Operating Budget'!N$16","v":0},{"$f":"'Operating Budget'!V17","v":0},{"$f":"'Operating Budget'!V21","v":0},{"$f":"'Operating Budget'!V22","v":0},{"$f":"'Operating Budget'!V23","v":0},{"$f":"'Operating Budget'!V24","v":0},{"$f":"'Operating Budget'!V25","v":0},{"$f":"'Operating Budget'!V26","v":0},{"$f":"'Operating Budget'!V27","v":0},{"$f":"'Operating Budget'!V28","v":0},{"$f":"'Operating Budget'!V31","v":"Select One"},{"$f":"'Shelter 9 Metrics'!$B$12","v":0},{"$f":"'Shelter 9 Metrics'!$C$12","v":0},{"$f":"'Shelter 9 Metrics'!D$12","v":0},{"$f":"'Shelter 9 Metrics'!E$12","v":0},{"$f":"'Shelter 9 Metrics'!F$12","v":0},{"$f":"'Shelter 9 Metrics'!G$12","v":0},{"$f":"'Shelter 9 Metrics'!H$12","v":0},{"$f":"'Shelter 9 Metrics'!I$12","v":0},{"$f":"'Shelter 9 Metrics'!J$12","v":0},{"$f":"'Shelter 9 Metrics'!K$12","v":0},{"$f":"'Shelter 9 Metrics'!L$12","v":0},{"$f":"'Shelter 9 Metrics'!B$11","v":0},{"$f":"'Shelter 9 Metrics'!B$8","v":0},{"$f":"'Shelter 9 Metrics'!D$8","v":0},{"$f":"'Shelter 9 Metrics'!F$8","v":0},{"$f":"'Shelter 9 Metrics'!I$8","v":0},{"$f":"'Shelter 9 Metrics'!L$8","v":0},{"$f":"'Shelter 9 Metrics'!C$11","v":0},{"$f":"'Shelter 9 Metrics'!D$11","v":0},{"$f":"'Shelter 9 Metrics'!E$11","v":0},{"$f":"'Shelter 9 Metrics'!F$11","v":0},{"$f":"'Shelter 9 Metrics'!G$11","v":0},{"$f":"'Shelter 9 Metrics'!H$11","v":0},{"$f":"'Shelter 9 Metrics'!I$11","v":0},{"$f":"'Shelter 9 Metrics'!J$11","v":0},{"$f":"'Shelter 9 Metrics'!K$11","v":0},{"$f":"'Shelter 9 Metrics'!L$11","v":0},{"$f":"'Shelter 9 Metrics'!E$15","v":0},{"$f":"'Shelter 9 Metrics'!E$16","v":0},{"$f":"'Shelter 9 Metrics'!E$19","v":0},{"$f":"'Shelter 9 Metrics'!K$19","v":0},{"$f":"'Shelter 9 Metrics'!E$20","v":0},{"$f":"'Shelter 9 Metrics'!K$20","v":0},{"$f":"COUNTA('Shelter 9 Metrics'!$A$41:$C$50)","v":0},{"$f":"SUM('Shelter 9 Metrics'!$F$41:$F$50)","v":0},0,{"$f":"'Shelter 9 Metrics'!A23","v":0},{"$f":"'Shelter 9 Metrics'!$G$24","v":"Select One"},{"$f":"'Shelter 9 Metrics'!$A$27","v":0},{"$f":"'Shelter 9 Metrics'!$G$28","v":"Select One"},{"$f":"'Shelter 9 Metrics'!$A$31","v":0},{"$f":"'Shelter 9 Metrics'!$A$33","v":0},{"$f":"'Shelter 9 Metrics'!$A$35","v":0},{"$f":"'Shelter 9 Metrics'!$A$37","v":0}]
[{"$f":"Certification!$B$14","v":0},{"$f":"Certification!$B$15","v":0},{"$f":"'Operating Budget'!X10","v":0},{"$f":"'Operating Budget'!X11","v":"Select One"},{"$f":"'Operating Budget'!X12","v":"00:00:00"},{"$f":"'Operating Budget'!X15","v":0},{"$f":"'Operating Budget'!X$16","v":0},{"$f":"'Operating Budget'!X17","v":0},{"$f":"'Operating Budget'!X21","v":0},{"$f":"'Operating Budget'!X22","v":0},{"$f":"'Operating Budget'!X23","v":0},{"$f":"'Operating Budget'!X24","v":0},{"$f":"'Operating Budget'!X25","v":0},{"$f":"'Operating Budget'!X26","v":0},{"$f":"'Operating Budget'!X27","v":0},{"$f":"'Operating Budget'!X28","v":0},{"$f":"'Operating Budget'!X31","v":"Select One"},{"$f":"'Shelter 10 Metrics'!$B$12","v":0},{"$f":"'Shelter 10 Metrics'!$C$12","v":0},{"$f":"'Shelter 10 Metrics'!D$12","v":0},{"$f":"'Shelter 10 Metrics'!E$12","v":0},{"$f":"'Shelter 10 Metrics'!F$12","v":0},{"$f":"'Shelter 10 Metrics'!G$12","v":0},{"$f":"'Shelter 10 Metrics'!H$12","v":0},{"$f":"'Shelter 10 Metrics'!I$12","v":0},{"$f":"'Shelter 10 Metrics'!J$12","v":0},{"$f":"'Shelter 10 Metrics'!K$12","v":0},{"$f":"'Shelter 10 Metrics'!L$12","v":0},{"$f":"'Shelter 10 Metrics'!B$11","v":0},{"$f":"'Shelter 10 Metrics'!B$8","v":0},{"$f":"'Shelter 10 Metrics'!D$8","v":0},{"$f":"'Shelter 10 Metrics'!F$8","v":0},{"$f":"'Shelter 10 Metrics'!I$8","v":0},{"$f":"'Shelter 10 Metrics'!L$8","v":0},{"$f":"'Shelter 10 Metrics'!C$11","v":0},{"$f":"'Shelter 10 Metrics'!D$11","v":0},{"$f":"'Shelter 10 Metrics'!E$11","v":0},{"$f":"'Shelter 10 Metrics'!F$11","v":0},{"$f":"'Shelter 10 Metrics'!G$11","v":0},{"$f":"'Shelter 10 Metrics'!H$11","v":0},{"$f":"'Shelter 10 Metrics'!I$11","v":0},{"$f":"'Shelter 10 Metrics'!J$11","v":0},{"$f":"'Shelter 10 Metrics'!K$11","v":0},{"$f":"'Shelter 10 Metrics'!L$11","v":0},{"$f":"'Shelter 10 Metrics'!E$15","v":0},{"$f":"'Shelter 10 Metrics'!E$16","v":0},{"$f":"'Shelter 10 Metrics'!E$19","v":0},{"$f":"'Shelter 10 Metrics'!K$19","v":0},{"$f":"'Shelter 10 Metrics'!E$20","v":0},{"$f":"'Shelter 10 Metrics'!K$20","v":0},{"$f":"COUNTA('Shelter 10 Metrics'!$A$41:$C$50)","v":0},{"$f":"SUM('Shelter 10 Metrics'!$F$41:$F$50)","v":0},0,{"$f":"'Shelter 10 Metrics'!A23","v":0},{"$f":"'Shelter 10 Metrics'!$G$24","v":"Select One"},{"$f":"'Shelter 10 Metrics'!$A$27","v":0},{"$f":"'Shelter 10 Metrics'!$G$28","v":"Select One"},{"$f":"'Shelter 10 Metrics'!$A$31","v":0},{"$f":"'Shelter 10 Metrics'!$A$33","v":0},{"$f":"'Shelter 10 Metrics'!$A$35","v":0},{"$f":"'Shelter 10 Metrics'!$A$37","v":0}]
[{"$f":"Certification!$B$14","v":0},{"$f":"Certification!$B$15","v":0},{"$f":"'Operating Budget'!Z10","v":0},{"$f":"'Operating Budget'!Z11","v":"Select One"},{"$f":"'Operating Budget'!Z12","v":"00:00:00"},{"$f":"'Operating Budget'!Z15","v":0},{"$f":"'Operating Budget'!Z$16","v":0},{"$f":"'Operating Budget'!Z17","v":0},{"$f":"'Operating Budget'!Z21","v":0},{"$f":"'Operating Budget'!Z22","v":0},{"$f":"'Operating Budget'!Z23","v":0},{"$f":"'Operating Budget'!Z24","v":0},{"$f":"'Operating Budget'!Z25","v":0},{"$f":"'Operating Budget'!Z26","v":0},{"$f":"'Operating Budget'!Z27","v":0},{"$f":"'Operating Budget'!Z28","v":0},{"$f":"'Operating Budget'!Z31","v":"Select One"},{"$f":"'Shelter 11 Metrics'!$B$12","v":0},{"$f":"'Shelter 11 Metrics'!$C$12","v":0},{"$f":"'Shelter 11 Metrics'!D$12","v":0},{"$f":"'Shelter 11 Metrics'!E$12","v":0},{"$f":"'Shelter 11 Metrics'!F$12","v":0},{"$f":"'Shelter 11 Metrics'!G$12","v":0},{"$f":"'Shelter 11 Metrics'!H$12","v":0},{"$f":"'Shelter 11 Metrics'!I$12","v":0},{"$f":"'Shelter 11 Metrics'!J$12","v":0},{"$f":"'Shelter 11 Metrics'!K$12","v":0},{"$f":"'Shelter 11 Metrics'!L$12","v":0},{"$f":"'Shelter 11 Metrics'!B$11","v":0},{"$f":"'Shelter 11 Metrics'!B$8","v":0},{"$f":"'Shelter 11 Metrics'!D$8","v":0},{"$f":"'Shelter 11 Metrics'!F$8","v":0},{"$f":"'Shelter 11 Metrics'!I$8","v":0},{"$f":"'Shelter 11 Metrics'!L$8","v":0},{"$f":"'Shelter 11 Metrics'!C$11","v":0},{"$f":"'Shelter 11 Metrics'!D$11","v":0},{"$f":"'Shelter 11 Metrics'!E$11","v":0},{"$f":"'Shelter 11 Metrics'!F$11","v":0},{"$f":"'Shelter 11 Metrics'!G$11","v":0},{"$f":"'Shelter 11 Metrics'!H$11","v":0},{"$f":"'Shelter 11 Metrics'!I$11","v":0},{"$f":"'Shelter 11 Metrics'!J$11","v":0},{"$f":"'Shelter 11 Metrics'!K$11","v":0},{"$f":"'Shelter 11 Metrics'!L$11","v":0},{"$f":"'Shelter 11 Metrics'!E$15","v":0},{"$f":"'Shelter 11 Metrics'!E$16","v":0},{"$f":"'Shelter 11 Metrics'!E$19","v":0},{"$f":"'Shelter 11 Metrics'!K$19","v":0},{"$f":"'Shelter 11 Metrics'!E$20","v":0},{"$f":"'Shelter 11 Metrics'!K$20","v":0},{"$f":"COUNTA('Shelter 11 Metrics'!$A$41:$C$50)","v":0},{"$f":"SUM('Shelter 11 Metrics'!$F$41:$F$50)","v":0},0,{"$f":"'Shelter 11 Metrics'!A23","v":0},{"$f":"'Shelter 11 Metrics'!$G$24","v":"Select One"},{"$f":"'Shelter 11 Metrics'!$A$27","v":0},{"$f":"'Shelter 11 Metrics'!$G$28","v":"Select One"},{"$f":"'Shelter 11 Metrics'!$A$31","v":0},{"$f":"'Shelter 11 Metrics'!$A$33","v":0},{"$f":"'Shelter 11 Metrics'!$A$35","v":0},{"$f":"'Shelter 11 Metrics'!$A$37","v":0}]
[{"$f":"Certification!$B$14","v":0},{"$f":"Certification!$B$15","v":0},{"$f":"'Operating Budget'!AB10","v":0},{"$f":"'Operating Budget'!AB11","v":"Select One"},{"$f":"'Operating Budget'!AB12","v":"00:00:00"},{"$f":"'Operating Budget'!AB15","v":0},{"$f":"'Operating Budget'!AB$16","v":0},{"$f":"'Operating Budget'!AB17","v":0},{"$f":"'Operating Budget'!AB21","v":0},{"$f":"'Operating Budget'!AB22","v":0},{"$f":"'Operating Budget'!AB23","v":0},{"$f":"'Operating Budget'!AB24","v":0},{"$f":"'Operating Budget'!AB25","v":0},{"$f":"'Operating Budget'!AB26","v":0},{"$f":"'Operating Budget'!AB27","v":0},{"$f":"'Operating Budget'!AB28","v":0},{"$f":"'Operating Budget'!AB31","v":"Select One"},{"$f":"'Shelter 12 Metrics'!$B$12","v":0},{"$f":"'Shelter 12 Metrics'!$C$12","v":0},{"$f":"'Shelter 12 Metrics'!D$12","v":0},{"$f":"'Shelter 12 Metrics'!E$12","v":0},{"$f":"'Shelter 12 Metrics'!F$12","v":0},{"$f":"'Shelter 12 Metrics'!G$12","v":0},{"$f":"'Shelter 12 Metrics'!H$12","v":0},{"$f":"'Shelter 12 Metrics'!I$12","v":0},{"$f":"'Shelter 12 Metrics'!J$12","v":0},{"$f":"'Shelter 12 Metrics'!K$12","v":0},{"$f":"'Shelter 12 Metrics'!L$12","v":0},{"$f":"'Shelter 12 Metrics'!B$11","v":0},{"$f":"'Shelter 12 Metrics'!B$8","v":0},{"$f":"'Shelter 12 Metrics'!D$8","v":0},{"$f":"'Shelter 12 Metrics'!F$8","v":0},{"$f":"'Shelter 12 Metrics'!I$8","v":0},{"$f":"'Shelter 12 Metrics'!L$8","v":0},{"$f":"'Shelter 12 Metrics'!C$11","v":0},{"$f":"'Shelter 12 Metrics'!D$11","v":0},{"$f":"'Shelter 12 Metrics'!E$11","v":0},{"$f":"'Shelter 12 Metrics'!F$11","v":0},{"$f":"'Shelter 12 Metrics'!G$11","v":0},{"$f":"'Shelter 12 Metrics'!H$11","v":0},{"$f":"'Shelter 12 Metrics'!I$11","v":0},{"$f":"'Shelter 12 Metrics'!J$11","v":0},{"$f":"'Shelter 12 Metrics'!K$11","v":0},{"$f":"'Shelter 12 Metrics'!L$11","v":0},{"$f":"'Shelter 12 Metrics'!E$15","v":0},{"$f":"'Shelter 12 Metrics'!E$16","v":0},{"$f":"'Shelter 12 Metrics'!E$19","v":0},{"$f":"'Shelter 12 Metrics'!K$19","v":0},{"$f":"'Shelter 12 Metrics'!E$20","v":0},{"$f":"'Shelter 12 Metrics'!K$20","v":0},{"$f":"COUNTA('Shelter 12 Metrics'!$A$41:$C$50)","v":0},{"$f":"SUM('Shelter 12 Metrics'!$F$41:$F$50)","v":0},0,{"$f":"'Shelter 12 Metrics'!A23","v":0},{"$f":"'Shelter 12 Metrics'!$G$24","v":"Select One"},{"$f":"'Shelter 12 Metrics'!$A$27","v":0},{"$f":"'Shelter 12 Metrics'!$G$28","v":"Select One"},{"$f":"'Shelter 12 Metrics'!$A$31","v":0},{"$f":"'Shelter 12 Metrics'!$A$33","v":0},{"$f":"'Shelter 12 Metrics'!$A$35","v":0},{"$f":"'Shelter 12 Metrics'!$A$37","v":0}]

{"sheet":"Lists","index":17,"n_rows":21,"n_cols":3,"rows_kept":21,"cut":false,"hidden":true,"merged":[]}
[]
[null,"Select Activity"]
[null,"Crates and Kennels"]
[null,"Animal Food"]
[null,"Staff for PAS"]
[null,"Veterinarian Services"]
[null,"PAS Liability Insurance"]
[null,"PAS Independent Audit"]
[]
[]
[]
[]
[null,"Select One"," "]
[null,"July 1, 2023 to December 31, 2023","Due January 31, 2024"]
[null,"January 1, 2024 to June 30, 2024","Due July 31, 2024"]
[null,"January 1, 2024 to June 30, 2025","Due July 31, 2025"]
[]
[]
[null,"Select One"]
[null,"Certification by Typed Signature","Fill out cell A29 Below"]
[null,"Certification by Wet or Electronic Signature","Attach PDF page with signature in addition to completed Excel workbook when submitting."]